Cogmind - Beta 16 @@@ ROGUE MODE // 2025.10.25 @ 16:37:21 Player: Mediocre Result: Escaped singularity! Performance ------------- Evolutions (9) 4500 Regions Visited (28) 5600 Robots Destroyed (659) 3295 Value Destroyed (35663) 35663 Prototype IDs (379) 7580 Alien Tech Used (3) 600 Bonus (57424) 57424 TOTAL SCORE: 114662 Bonus ------- Triggered High Security 500 High Alert Combat Kills 9291 Follower Combat Kills 2700 Destroyed Unchained 2000 Network Hubs Disabled 600 Met Zhirov 300 Met Warlord at Base 500 MAIN.C Attacked Warlord 500 Warlord Defense Kills 1878 Built Enhanced Grunts 300 A7 Reached Mainframe 300 Met R17 at Cetus 500 Met R17 at Research 2000 Destroyed MAIN.C Guards 500 Met MAIN.C 5000 Destroyed MAIN.C Shell 5000 Destroyed MAIN.C 10000 Met Warlord at Command 2000 Met Architect 300 Destroyed A8 300 Destroyed A6 400 Destroyed A5 500 Destroyed Architect 15000 Win 3000 Friendly Fire -5945 Cogmind --------- Core Integrity 826/1600 Matter 280/300 Energy 1278/1302 System Corruption 2% Temperature Cool (-199) Movement Walking (93) Location Near Former Tau Ceti IV Parts ------- > --- POWER (4) -------- Antimatter Reactor Multi-Quantum Reactor > --- PROPULSION (6) --- Biometal-Armored Exoskeleton > --- UTILITY (11) ----- Armored Scrap Engine Advanced Cryofiber Web Advanced Heat Sink Huge Storage Unit Experimental Targeting Computer Experimental Core Analyzer Improved Armor Integrity Analyzer Heavy Regenerative Plating (fused) Advanced Force Field > --- WEAPON (4) ------- Hvy. Thermal Nova Construct/C > --- INVENTORY (25) --- Quantum Reactor Enhanced Biometal Leg Enhanced Biometal Leg Advanced Cryofiber Web Experimental Heat Sink Experimental Coolant Injector Experimental Energy Well (600) Compact Matter Pod (150) Experimental Core Analyzer Experimental Core Analyzer Experimental Weapon Cycler Experimental EM Shield Advanced Shield Generator Advanced Force Field Experimental Force Field Core Regenerator Subatomic Replicator Multirail Sigix Terminator (1) Vortex Lance (40) Peak State ------------ > --- POWER ------------ Multi-Quantum Reactor > --- PROPULSION ------- Biometal-Armored Exoskeleton > --- UTILITY ---------- Armored Scrap Engine Advanced Cryofiber Web Experimental Heat Sink Experimental Heat Sink Huge Storage Unit Experimental Core Analyzer Improved Armor Integrity Analyzer Heavy Regenerative Plating Experimental System Purifier > --- WEAPON ----------- Hvy. Thermal Nova Construct/C > --- INVENTORY -------- Advanced Coolant Injector Experimental Coolant Injector Compact Matter Pod Experimental Core Analyzer Advanced Kinecellerator Experimental Weapon Cycler Experimental Reaction Control System Makeshift Ablative Armor Experimental EM Shield Advanced Shield Generator Advanced Force Field Experimental Force Field Advanced Point Defense System Transdimensional Reconstructor Transdimensional Reconstructor Core Regenerator Subatomic Replicator Heavy Quantum Rifle Multirail Multirail Gamma Bomb Array Sigix Terminator Improved Remote Datajack Vortex Lance [Rating: 236] Favorites ----------- Power Constructs Engine Cooled Ion Engine Power Core Light Nuclear Core Reactor Constructs Propulsion Light Treads Treads Light Treads Leg Constructs Hover Unit Aerolev Unit Flight Unit Cooled Q-thruster Utility Armored Scrap Engine Device Armored Scrap Engine Storage Huge Storage Unit Processor Enhanced Optical Array Hackware Improved Hacking Suite Protection Centrium Medium Armor Plating Weapon Constructs Energy Gun Advanced Beam Rifle Energy Cannon Constructs Ballistic Gun Autogun Ballistic Cannon Hardcell Cannon Launcher Grenade Launcher Special Weapon Plasma Cutter Impact Weapon Makeshift Hammer Slashing Weapon Scythe Piercing Weapon Heavy Pick Special Melee Weapon Dirty Datajack Build | -11 -10 -10 -8 -8 -8 -6 -6 -6 -6 -6 -5 -5 -5 -5 -4 -4 -4 -4 -4 -3 -3 -3 -2 -2 -2 -1 -1 -1 ------- Run | Yrd Mat Sub Mat Sto Rec Fac Ext Cet Arc Hub Fac Upp Upp Zhi Pro Fac Upp Upp War Pro Res Tes Res Qua Sec Acc Com Ac0 Slots Evolved 18 | . . . 4 . . 4 . . . . 2 . . . . 2 . . . . 2 . 2 . . 2 . . Power 3 | . . . . . . 1 . . . . . . . . . 1 . . . . 1 . . . . . . . Propulsion 4 | . . . 2 . . 1 . . . . . . . . . . . . . . . . 1 . . . . . Utility 9 | . . . 1 . . 2 . . . . 2 . . . . . . . . . 1 . 1 . . 2 . . Weapon 2 | . . . 1 . . . . . . . . . . . . 1 . . . . . . . . . . . . Parts Attached 177 | 6 12 8 35 10 5 5 4 2 . . 3 . 1 3 . 18 1 . 6 . 6 6 16 9 . 5 10 6 Power 14 | 1 1 . 4 1 . . . . . . . . . . . 1 . . . . . 1 1 2 . . . 2 Engine 5 | 1 . . 3 1 . . . . . . . . . . . . . . . . . . . . . . . . Core 3 | . 1 . 1 . . . . . . . . . . . . . . . . . . 1 . . . . . . Reactor 6 | . . . . . . . . . . . . . . . . 1 . . . . . . 1 2 . . . 2 Propulsion 28 | 2 . 2 15 7 1 . . . . . . . . . . . . . . . . . 1 . . . . . Treads 25 | 2 . 2 14 6 1 . . . . . . . . . . . . . . . . . . . . . . . Leg 1 | . . . 1 . . . . . . . . . . . . . . . . . . . . . . . . . Wheel . | . . . . . . . . . . . . . . . . . . . . . . . . . . . . . Hover 1 | . . . . 1 . . . . . . . . . . . . . . . . . . . . . . . . Flight 1 | . . . . . . . . . . . . . . . . . . . . . . . 1 . . . . . Utility 96 | 1 7 3 6 . 3 3 3 1 . . 3 . . 2 . 10 1 . 4 . 4 5 14 7 . 5 10 4 Device 48 | . 1 . 1 . 1 3 2 . . . 1 . . 1 . 6 1 . 3 . . 1 10 5 . 1 8 3 Storage 8 | 1 3 . 1 . 1 . . . . . . . . . . . . . . . 1 . 1 . . . . . Processor 17 | . . . 1 . . . . . . . 1 . . . . 2 . . . . 2 2 2 1 . 4 1 1 Hackware 2 | . . . . . . . . . . . . . . . . . . . . . 1 . . 1 . . . . Protection 21 | . 3 3 3 . 1 . 1 1 . . 1 . . 1 . 2 . . 1 . . 2 1 . . . 1 . Artifact . | . . . . . . . . . . . . . . . . . . . . . . . . . . . . . Weapon 39 | 2 4 3 10 2 1 2 1 1 . . . . 1 1 . 7 . . 2 . 2 . . . . . . . Energy Gun 5 | . . . 1 1 1 1 . . . . . . . . . 1 . . . . . . . . . . . . Energy Cannon 3 | . . . . . . . . . . . . . . . . 1 . . 1 . 1 . . . . . . . Ballistic Gun 13 | 2 2 1 7 1 . . . . . . . . . . . . . . . . . . . . . . . . Ballistic Cannon 2 | . . . . . . . . . . . . . . . . 1 . . 1 . . . . . . . . . Launcher 7 | . 2 . . . . 1 . 1 . . . . 1 . . 1 . . . . 1 . . . . . . . Special Weapon 3 | . . . . . . . 1 . . . . . . . . 2 . . . . . . . . . . . . Impact Weapon 2 | . . 2 . . . . . . . . . . . . . . . . . . . . . . . . . . Slashing Weapon 2 | . . . 1 . . . . . . . . . . . . 1 . . . . . . . . . . . . Piercing Weapon 1 | . . . . . . . . . . . . . . 1 . . . . . . . . . . . . . . Special Melee Weapon 1 | . . . 1 . . . . . . . . . . . . . . . . . . . . . . . . . Unidentified Prototypes 32 | . . . 3 1 1 . . 1 . . . . . 3 . 3 . . 4 . 1 5 3 4 1 . 2 . Parts Lost 20 | . . 2 4 . . 3 . . . . 1 . 1 . . . . . . . . 3 1 . . 2 . 3 Power 2 | . . . . . . 1 . . . . . . . . . . . . . . . . . . . . . 1 Propulsion 3 | . . 1 2 . . . . . . . . . . . . . . . . . . . . . . . . . Utility 9 | . . 1 . . . . . . . . . . . . . . . . . . . 3 1 . . 2 . 2 Weapon 6 | . . . 2 . . 2 . . . . 1 . 1 . . . . . . . . . . . . . . . Highest Loss Streak 3 | . . 1 2 . . 2 . . . . 1 . 1 . . . . . . . . 3 1 . . 1 . 1 To Critical Strikes 1 | . . . . . . . . . . . . . . . . . . . . . . . . . . . . 1 Average Backups 18 | 4 12 18 21 22 13 12 13 14 14 15 14 14 14 14 14 14 14 14 14 14 16 24 24 24 23 23 23 21 Power . | . . . . . . . . . . . . . . . . . 1 1 . . . . . . . . . . Propulsion 2 | 1 3 5 7 8 5 6 4 1 . . . . . . . . . . . . . . 1 . . . . 2 Utility 7 | 1 3 3 3 1 1 1 3 5 6 7 6 7 7 8 8 7 8 8 8 9 9 12 13 13 12 11 13 13 Weapon 6 | . 4 7 8 10 5 2 3 5 6 6 6 5 5 4 3 4 2 2 3 4 6 10 8 6 5 6 4 3 Tool/Special . | . . . . . . . . . . . . . . . . . . . . . . . . . . . . . Unused Backups 124 | . 5 6 13 3 11 3 6 4 . . 2 1 . 2 . 5 . . 2 . . 2 9 10 6 2 18 14 Power 3 | . 1 . . . . 1 . . . . . . . . . . . . . . . . . . 1 . . . Propulsion 27 | . 2 2 3 2 5 1 5 1 . . . . . . . . . . . . . . 2 1 . . 1 2 Utility 36 | . 2 1 5 . . . . 2 . . . 1 . . . . . . 1 . . 2 3 4 1 1 7 6 Weapon 51 | . . 3 5 1 6 1 1 1 . . 2 . . 2 . 5 . . . . . . 4 5 2 1 8 4 Tool/Special 7 | . . . . . . . . . . . . . . . . . . . 1 . . . . . 2 . 2 2 Average Slot Usage (%) 63 | . 97 99 98 100 72 44 45 46 46 46 51 52 52 52 52 49 47 47 47 47 49 46 46 50 47 51 48 49 Engine 2 | . 12 . 4 9 4 5 3 . . . . . 4 2 . . . . . . . . . . . . . . Core 2 | . 1 14 4 . 3 . 2 1 . . 2 3 . 2 5 2 . . . . . . . . . . . . Reactor 2 | . . . . . . . . 4 6 5 2 1 . . . 2 5 5 5 5 4 3 3 7 4 4 4 5 Treads 10 | . 28 27 34 35 21 . . . 2 6 1 . . . . . . . . . . . . . 3 4 2 . Leg 1 | . . . 1 . . . 6 6 4 . 3 . . . . 3 1 . 2 5 3 . 3 4 . . . 4 Device 12 | . 3 6 . . 4 16 15 13 13 13 17 17 17 17 17 15 15 15 14 15 13 13 20 17 17 19 19 19 Storage 6 | . 10 14 9 9 5 6 6 6 6 6 5 5 5 5 5 5 5 5 5 5 4 4 4 4 4 4 4 4 Processor 5 | . . . 8 9 7 . . . . . 4 5 5 5 5 5 5 5 5 5 8 8 4 7 8 11 8 8 Protection 5 | . 11 7 9 9 4 . 2 6 6 6 4 5 5 4 5 4 5 5 5 5 4 3 4 4 3 4 3 4 Ballistic Gun 7 | . 27 25 26 21 10 . . . . . . . . . . . . . . . . . . . . . . . Ballistic Cannon 2 | . . . . . 1 3 1 . 6 6 5 . 1 5 5 5 5 5 5 5 4 4 1 . 2 4 3 2 Peak Build Rating 236 | 6 12 19 34 35 47 67 82 113 113 118 121 114 117 119 118 143 139 134 150 150 166 175 199 205 215 230 236 232 Average Rating 114 | 3 8 15 28 32 36 57 70 104 108 114 115 111 112 113 114 130 130 129 134 146 157 165 181 198 206 227 230 225 On Entrance 112 | . 6 12 17 33 35 47 62 82 106 118 107 112 113 113 114 114 133 128 131 143 146 163 160 199 203 213 227 230 Avg Prop Armor Cover (%) 14 | 25 24 . 3 . . . . . . . . . . . . . . . . . . . . . . . . . Naked Turns . | . . . . . . . . . . . . . . . . . . . . . . . . . . . . . Heaviest Build 239 | 12 53 54 112 112 106 46 57 64 74 74 75 77 77 80 77 97 75 84 93 84 182 192 199 221 239 239 214 221 Greatest Support 407 | 3 40 40 80 80 80 59 94 134 87 87 121 121 121 121 121 194 194 194 214 214 214 214 256 256 356 356 407 220 Greatest Overweight (x) 3 | 3 2 1 1 1 1 1 . . . . 1 . . . . . . . . . . . . . . . . 1 Average Overweight (x) . | 1 . . . 1 . . . . . . . . . . . . . . . . . . . . . . . . Largest Inventory Capacity 25 | 8 20 20 25 25 25 15 15 15 15 15 15 15 15 15 15 15 15 15 15 15 25 25 25 25 25 25 25 25 Average Capacity 19 | 5 12 19 23 25 15 15 15 15 15 15 15 15 15 15 15 15 15 15 15 15 19 25 25 25 25 25 25 25 Most Carried 25 | 5 20 20 25 25 25 15 15 15 15 15 15 15 15 15 15 15 15 15 15 15 22 25 25 25 25 25 25 25 Average Carried 19 | 4 12 19 23 24 15 14 14 14 14 15 14 14 14 14 14 14 14 14 14 14 16 24 24 24 24 24 24 22 Final Capacity 25 | 8 20 20 25 25 15 15 15 15 15 15 15 15 15 15 15 15 15 15 15 15 25 25 25 25 25 25 25 25 Final Carried 25 | 5 20 20 25 25 13 12 15 14 15 15 14 14 15 15 15 15 15 15 15 15 22 22 25 25 24 25 25 22 Scrap Engine Consumption 376 | . . . . . 48 24 36 16 3 8 7 8 3 5 . 42 3 2 17 2 9 11 42 8 11 2 63 6 Constructs Created 4 | . . . . . 3 1 . . . . . . . . . . . . . . . . . . . . . . Constructs Modified 182 | . . . . . 18 12 18 7 6 2 6 2 3 1 . 18 2 2 5 2 6 7 21 4 4 2 32 2 Class Distribution -------------------- 34% | Generator-Construct 21% | Construct 14% | Scavenger-Gunner 12% | Commander-Construct 11% | Mutant Dominant Class ---------------- Mutant | -10/Materials Mutant | -10/Subcaves Scavenger-Gunner | -8/Materials Scavenger-Gunner | -8/Storage Commander-Construct | -8/Recycling Construct | -6/Factory Construct | -6/Extension Commander-Construct | -6/Cetus Commander-Construct | -6/Archives Commander-Construct | -6/Hub_04(d) Construct | -5/Factory Construct | -5/Upper Caves Construct | -5/Upper Caves Construct | -5/Zhirov Construct | -4/Proximity Caves Construct | -4/Factory Construct | -4/Upper Caves Construct | -4/Upper Caves Commander-Construct | -4/Warlord Commander-Construct | -3/Proximity Caves Generator-Construct | -3/Research Generator-Construct | -3/Testing Generator-Construct | -2/Research Generator-Construct | -2/Quarantine Generator-Construct | -2/Section 7 Generator-Construct | -1/Access Generator-Construct | -1/Command Generator-Construct | -1/Access_0 Resources | -11 -10 -10 -8 -8 -8 -6 -6 -6 -6 -6 -5 -5 -5 -5 -4 -4 -4 -4 -4 -3 -3 -3 -2 -2 -2 -1 -1 -1 ----------- Run | Yrd Mat Sub Mat Sto Rec Fac Ext Cet Arc Hub Fac Upp Upp Zhi Pro Fac Upp Upp War Pro Res Tes Res Qua Sec Acc Com Ac0 Matter Collected 19747 | 282 640 920 1965 771 234 323 261 50 13 13 82 64 87 70 106 2088 170 174 554 176 244 436 1119 420 1210 3701 3409 165 Remotely 199 | . . . . . . . . . . . . . . . . . . . 150 . . . . . . . 49 . Salvage Created 42246 | 156 754 542 2591 1189 307 1962 1299 263 117 716 906 715 344 312 78 2665 163 349 903 304 1218 801 3783 1803 2416 5857 6801 2932 Parts 1906 | 14 43 35 153 79 12 87 46 11 6 20 53 27 9 3 7 108 5 19 29 13 32 42 159 76 125 266 249 178 Haulers Intercepted 30 | . 2 . 6 3 . 1 . . . 1 . . . . . 2 . . . . 8 1 1 1 1 3 . . Recyclers Shooed 23 | 1 3 . 3 3 . 5 1 . . . 2 . . . . 1 . . . . . . . . 1 2 1 . Parts Field Recycled . | . . . . . . . . . . . . . . . . . . . . . . . . . . . . . Retrieved Matter . | . . . . . . . . . . . . . . . . . . . . . . . . . . . . . Parts Self-Destructed 65 | . . 11 . . . . . . . . . 9 3 2 1 . . 14 . 25 . . . . . . . . Prevented 35 | . . . . . . . . . . . . 16 10 . 1 . 5 3 . . . . . . . . . . Parts Restored . | . . . . . . . . . . . . . . . . . . . . . . . . . . . . . Kills | -11 -10 -10 -8 -8 -8 -6 -6 -6 -6 -6 -5 -5 -5 -5 -4 -4 -4 -4 -4 -3 -3 -3 -2 -2 -2 -1 -1 -1 ------- Run | Yrd Mat Sub Mat Sto Rec Fac Ext Cet Arc Hub Fac Upp Upp Zhi Pro Fac Upp Upp War Pro Res Tes Res Qua Sec Acc Com Ac0 Combat Hostiles Destroyed 449 | . 11 15 35 14 5 16 15 3 1 5 13 9 5 . 5 44 2 9 12 7 3 6 48 18 25 50 44 29 Melee 2 | . . . . . . . . . . . . . . . . 2 . . . . . . . . . . . . Guns 66 | . 8 4 35 14 5 . . . . . . . . . . . . . . . . . . . . . . . Cannons 287 | . . . . . . 10 11 . 1 5 10 4 2 . . 21 1 2 2 3 2 6 48 18 24 47 41 29 AOE 66 | . 3 10 . . . 6 3 . . . 3 4 1 . 5 16 . 6 4 4 1 . . . . . . . Classes Destroyed 26 | 2 7 1 4 1 . 2 2 . . . . 1 . . . . . . 3 . . 1 . 1 1 . . . Worker 37 | . 1 . 8 3 . 1 . . . 1 5 . . . . 1 . . . . 1 1 . 1 2 7 5 . Builder 41 | . 3 . 4 3 1 6 . . . 1 2 . . . . 4 . . . . . 1 . 4 1 11 . . Tunneler 6 | 5 1 . . . . . . . . . . . . . . . . . . . . . . . . . . . Hauler 30 | . 2 . 6 3 . 1 . . . 1 . . . . . 2 . . . . 8 1 1 1 1 3 . . Recycler 40 | 1 3 . 3 2 . 6 4 . . . 2 . . . . 2 . . . . . . . . . 9 8 . Mechanic 3 | . . . 1 1 . . . . . . . . . . . . . . . . . . . . . 1 . . Operator 11 | . 1 . 2 1 . . . . 1 . . . . . . 1 . . . . 2 1 . . . 1 1 . Watcher 32 | . 3 . 4 2 . 3 2 1 . . 1 . . . . 1 . . . . 1 3 1 . 2 6 2 . Swarmer 70 | . 3 1 4 . . . 4 . . . 5 . . . 5 8 . 7 . 5 . . 5 2 . 10 11 . Grunt 136 | . 8 . 19 8 . 10 3 . . 4 3 4 3 . . 8 . . 4 2 1 . 18 8 4 20 9 . Brawler 10 | . . . 1 1 . 1 . . . . 1 1 . . . 1 . . 2 . . . 2 . . . . . Duelist 6 | . . . . . . . 2 . . . . 2 . . . . . . 1 . . . . . . . 1 . Protector 1 | . . . . . . . . . . . . . . . . . . . 1 . . . . . . . . . Researcher 2 | . . . . . . . . . . . . . . . . . . . . . . . . . 2 . . . Sentry 43 | . . . 10 4 2 2 5 . 1 1 1 2 1 . . 3 . . . . 1 . 3 . 4 1 2 . Specialist 3 | . . . . . . 2 . . . . . . . . . . . . 1 . . . . . . . . . Hunter 43 | . . . . 1 . 3 . . . . . . 1 . . 9 2 2 . . 1 2 4 3 2 6 7 . Programmer 53 | . . . . . . 2 . . . . 3 . . . . 15 . . . . . 3 3 2 9 10 6 . Heavy 4 | . . . 1 . . . . . . . . . . . . . . . . . . . . . . 2 1 . Behemoth 6 | . . . . . . . 1 . . . . . . . . . . . . . . . 2 . 2 . 1 . Cetus Guard 3 | . . . . . . . . 3 . . . . . . . . . . . . . . . . . . . . S7 Guard 2 | . . . . . . . . . . . . . . . . . . . . . . . . . 2 . . . M Guard 2 | . . . . . . . . . . . . . . . . . . . . . . . . . . . 2 . Enhanced Grunt 19 | . . . . . . . . . . 3 . . . . . . . . . . . . . . . . . 16 Enhanced Sentry 1 | . . . . . . . . . . . . . . . . . . . . . . . . . . . . 1 Enhanced Hunter 8 | . . . . . . . . . . . . . . . . . . . . . . . . . . . . 8 Combat Programmer 2 | . . . . . . . . . . . . . . . . . . . . . . . . . . . 2 . Striker 7 | . . . . . . . . . . . . . . . . . . . 2 . . . 5 . . . . . Executioner 9 | . . . . . . . . . . . . . . . . . . . 1 . . . 6 . 2 . . . Alpha 7 2 | . . . . . . . . . . . . . . . . . . . . . . 1 . 1 . . . . Fortress 1 | . . . . . . . . . . . . . . . . . . . . . . . . 1 . . . . Subdweller 17 | . . 14 . . 3 . . . . . . . . . . . . . . . . . . . . . . . Samaritan 2 | . . . . . . . . . . . . 1 . . . . . 1 . . . . . . . . . . Best Kill Streak 24 | 3 4 4 9 6 2 8 5 4 1 2 6 8 3 . 5 6 2 5 5 4 5 4 14 6 3 24 10 4 Combat Bots Only 19 | . 3 4 9 4 2 5 5 3 1 2 3 8 3 . 5 5 2 5 5 4 1 3 14 5 3 19 10 4 Max Kills in Single Turn 10 | 1 2 2 2 1 1 10 3 2 1 2 6 1 1 . 4 4 1 4 2 2 2 1 2 2 2 3 3 1 Gunslinging . | . . . . . . . . . . . . . . . . . . . . . . . . . . . . . Exploded 5 | . 1 2 . . . 5 3 . . . 1 1 1 . 4 4 . 3 1 2 1 . . . . . . . Melee 1 | . . . . . . . . . . . . . . . . 1 . . . . . . . . . . . . Uniques/NPCs Destroyed 9 | . . . . . . . . . . . . . . . . . . . . . . . . 1 . 1 3 4 DW-4LL (-2/Quarantine) 6S-H0T (-1/Access) MAIN.C Shell (-1/Command) ZY-L1N (-1/Command) MAIN.C (-1/Command) A8 (-1/Access_0) A6 (-1/Access_0) A5 (-1/Access_0) Architect (-1/Access_0) Combat | -11 -10 -10 -8 -8 -8 -6 -6 -6 -6 -6 -5 -5 -5 -5 -4 -4 -4 -4 -4 -3 -3 -3 -2 -2 -2 -1 -1 -1 -------- Run | Yrd Mat Sub Mat Sto Rec Fac Ext Cet Arc Hub Fac Upp Upp Zhi Pro Fac Upp Upp War Pro Res Tes Res Qua Sec Acc Com Ac0 Hostile Shots Fired 2744 | . 32 44 110 40 25 125 140 19 4 58 150 25 25 . 18 334 24 21 47 18 6 128 165 133 79 165 245 564 Missed 939 | . 9 13 24 7 8 33 52 6 1 15 59 13 9 . 8 120 8 13 21 7 3 44 59 37 27 52 72 219 Hits 1805 | . 23 31 86 33 17 92 88 13 3 43 91 12 16 . 10 214 16 8 26 11 3 84 106 96 52 113 173 345 Melee 28 | . . . . . . . . . . . . . . . . . . . 2 . . . 22 . . . 1 3 Projectile 1777 | . 23 31 86 33 17 92 88 13 3 43 91 12 16 . 10 214 16 8 24 11 3 84 84 96 52 113 172 342 AOE 4 | . . 2 . . . . . . . . . . . . . 2 . . . . . . . . . . . . Critical Strikes 112 | . . 4 1 . . 7 1 1 . 1 2 1 2 . . 15 . 1 . 1 . . 9 7 2 12 8 37 Part Disruptions 5 | . . . . . . . . . . . . . . . . . . . . . . . . . . . 2 3 Damage Taken 29699 | . 284 846 1518 579 315 1406 793 280 96 1258 1480 305 388 . 205 4500 309 233 430 295 245 954 1848 1117 704 1431 2766 5114 Core 2235 | . 65 113 123 17 12 161 93 . . 161 141 28 34 . . 268 44 . 62 21 . 61 178 47 14 67 63 462 Absorbed by Shields 13084 | . . . . . . 10 235 90 . . . . . . . . . . 266 . . 51 1458 1160 732 1419 2740 4923 Reduced by Siege Mode 76 | . . . . . . . . . . . . . . . . . . . . . . . . . . . 76 . Ignored by Resistances 502 | . . . . . . 15 . . . 89 60 . . . . 56 . . . . . . . . 71 . . 211 Regen/Repaired (Parts) 16126 | . . . . . 5 498 395 134 66 35 743 515 225 . . 1873 804 406 859 118 227 42 1680 685 1183 455 3684 1494 Core Remaining (%) 69 | 100 . 28 . . 72 . . . . 51 . . . . 79 . . . . 65 . 95 . . 83 . . 51 Volleys Fired 1732 | 21 64 39 132 57 22 66 63 9 5 20 46 28 14 . 3 130 4 12 40 14 25 66 170 77 85 130 193 197 Largest 3 | 2 2 2 3 3 3 2 1 1 1 1 1 2 1 . 1 2 2 1 1 1 2 1 1 1 1 1 1 1 Hottest 636 | 40 60 60 74 100 111 393 157 235 235 235 235 195 156 . 156 181 166 126 126 126 220 168 181 181 181 135 636 230 Shots Fired 2273 | 42 128 76 387 171 62 76 63 9 5 20 44 30 14 . 3 133 8 12 40 14 26 66 170 77 84 130 186 197 Gun 841 | 42 120 50 387 171 62 9 . . . . . . . . . . . . . . . . . . . . . . Cannon 1311 | . . . . . . 62 62 3 5 20 44 23 7 . 1 118 4 2 18 9 23 66 170 77 84 130 186 197 Launcher 104 | . 8 26 . . . 5 1 6 . . . 7 7 . 2 9 4 9 12 5 3 . . . . . . . Special 17 | . . . . . . . . . . . . . . . . 6 . 1 10 . . . . . . . . . Kinetic 1753 | 42 120 50 387 167 41 42 . . 5 20 44 8 2 . 1 56 4 2 18 . 5 66 166 33 36 130 186 122 Thermal 199 | . . . . . 21 20 42 3 . . . 15 5 . . 14 . . . . . . 4 . . . . 75 Explosive 53 | . 8 26 . . . 5 1 . . . . . . . 2 6 . . . 5 . . . . . . . . Electromagnetic 137 | . . . . 4 . 9 20 6 . . . 7 7 . . 51 4 9 12 . 8 . . . . . . . Entropic 114 | . . . . . . . . . . . . . . . . . . . . 9 13 . . 44 48 . . . Robot Hit Streak 28 | 6 5 28 22 28 13 14 6 4 1 4 6 12 6 . 2 9 3 6 10 2 5 14 6 13 10 12 19 13 Robot Miss Streak 8 | 3 8 3 4 4 2 4 5 2 1 2 7 2 1 . 3 5 6 1 2 8 4 3 5 4 2 3 3 6 Penetration Max 2 | . . . . . . . . . . 1 . . . . . 1 . . . . . . 1 1 . 2 2 . Secondary Targets 13 | . . . 10 1 2 . . . . . . . . . . . . . . . . . . . . . . . Max Gunslinging Chain 1 | . . . 1 1 1 . . . . . . . . . . . . . . . . . . . . . . . Shots Hit Robots 1416 | 29 58 59 270 114 41 46 41 4 3 10 20 23 12 8 1 85 5 7 29 3 19 43 84 39 49 78 99 137 Core Hits 880 | 13 42 33 115 44 10 62 25 9 2 12 22 21 11 4 7 101 5 11 15 19 15 13 44 20 18 54 53 80 Critical Kills 8 | . 1 . . . . . . . . . 1 . . . . . . . . . . . . . . 2 4 . Critical Parts Destroyed 2 | . . . . . . . . . . . . . 1 . . . . . . . . . . . . . 1 . Critical Strikes 37 | . 1 . . . 3 . . . . . 1 . 1 3 . 6 . . . . 2 2 2 4 3 4 5 . Burn 3 | . . . . . 3 . . . . . . . . . . . . . . . . . . . . . . . Meltdown 6 | . . . . . . . . . . . . . . . . . . . . . . . . . . 2 4 . Destroy 4 | . 1 . . . . . . . . . 1 . 1 . . . . . . . . . . . . . 1 . Blast 9 | . . . . . . . . . . . . . . . . 3 . . . . 2 2 2 . . . . . Sever 3 | . . . . . . . . . . . . . . . . 3 . . . . . . . . . . . . Impale 3 | . . . . . . . . . . . . . . 3 . . . . . . . . . . . . . . Sunder 9 | . . . . . . . . . . . . . . . . . . . . . . . . 4 3 2 . . Melee Attacks 72 | . . 27 6 12 1 . . . . . . . . 8 . 18 . . . . . . . . . . . . Impact 27 | . . 27 . . . . . . . . . . . . . . . . . . . . . . . . . . Slashing 35 | . . . 4 12 1 . . . . . . . . . . 18 . . . . . . . . . . . . Piercing 10 | . . . 2 . . . . . . . . . . 8 . . . . . . . . . . . . . . Sneak Attacks 7 | . . 1 1 5 . . . . . . . . . . . . . . . . . . . . . . . . Combat Hostiles . | . . . . . . . . . . . . . . . . . . . . . . . . . . . . . Follow-up Attacks . | . . . . . . . . . . . . . . . . . . . . . . . . . . . . . Damage Inflicted 173538 | 219 1055 1827 4406 2229 750 3732 2566 447 359 1574 3421 1682 859 532 202 7027 357 745 3221 1203 2661 6882 16409 11503 13898 28117 31172 24483 Guns 8315 | 219 646 559 4262 1803 750 76 . . . . . . . . . . . . . . . . . . . . . . Cannons 149827 | . . . . . . 1842 2342 . 359 1305 2126 1065 334 . . 4373 157 82 1419 639 2253 6882 16360 11422 13299 27961 31124 24483 Explosions 13087 | . 399 993 . 63 . 1802 224 447 . 254 1270 617 525 . 202 2346 200 663 1802 564 221 . 49 . 446 . . . Melee 1446 | . . 275 69 328 . . . . . . . . . 532 . 242 . . . . . . . . . . . . Ramming 863 | . 10 . 75 35 . 12 . . . 15 25 . . . . 66 . . . . 187 . . 81 153 156 48 . Kinetic 122861 | 219 646 559 4262 1759 457 980 . . 359 1305 2126 431 132 . . 1620 157 82 1419 . 651 6882 15997 2822 5763 27961 31124 15148 Thermal 16169 | . . . . 63 293 1054 1664 19 . . 637 634 202 . . 1018 . 147 740 . . . 363 . . . . 9335 Explosive 6542 | . 399 993 . . . 1543 224 . . . 633 . . . 202 1489 . . . 564 . . 49 . 446 . . . Electromagnetic 7466 | . . . . 44 . 143 678 428 . 254 . 617 525 . . 2592 200 516 1062 . 407 . . . . . . . Impact 275 | . . 275 . . . . . . . . . . . . . . . . . . . . . . . . . . Slashing 638 | . . . 68 328 . . . . . . . . . . . 242 . . . . . . . . . . . . Piercing 533 | . . . 1 . . . . . . . . . . 532 . . . . . . . . . . . . . . Entropic 18191 | . . . . . . . . . . . . . . . . . . . . 639 1416 . . 8600 7536 . . . Highest Corruption 16 | . . . . . . 3 3 3 3 9 5 5 5 5 5 10 10 10 10 . . 9 3 4 10 5 16 2 Average Corruption 4 | . . . . . . 2 3 3 3 3 4 5 5 5 5 4 10 10 10 . . 7 2 3 8 3 11 1 Corruption Purged 19 | . . . . . . . . . . . . . . . . 3 . . . . . . . . . . 16 . Corruption Blocked . | . . . . . . . . . . . . . . . . . . . . . . . . . . . . . Effects 315 | . . . . . . 7 26 8 2 10 7 6 11 6 17 48 13 12 2 . . 3 20 16 31 14 46 10 Message Errors 71 | . . . . . . 2 5 2 . 5 1 3 1 2 7 9 2 4 . . . . 5 3 7 3 9 1 Matter Fused 76 | . . . . . . 3 5 2 1 2 . 1 3 . 5 12 4 1 . . . 1 6 5 14 4 3 4 Heat Flow Errors 40 | . . . . . . . 3 1 . 1 . . 4 . 1 7 . 2 . . . 1 1 4 2 4 8 1 Energy Discharges 45 | . . . . . . . 6 2 1 . 3 . 1 1 3 7 1 2 . . . 1 2 2 4 1 6 2 Parts Rejected 4 | . . . . . . 1 . . . . . . . . . 1 . . . . . . . . . . 1 1 Parts Fused 8 | . . . . . . . 1 . . . . . 1 . . 1 1 . . . . . . 1 . 1 2 . Data Loss (minor) 36 | . . . . . . 1 5 . . 1 . . 1 3 1 5 3 1 2 . . . 2 1 3 1 5 1 Data Loss (major) 12 | . . . . . . . . . . 1 . 2 . . . 3 . . . . . . 2 . . . 4 . Misfires 2 | . . . . . . . . . . . . . . . . 1 1 . . . . . . . . . . . Alerts 8 | . . . . . . . 1 1 . . 1 . . . . . 1 1 . . . . 2 . . . 1 . Misdirections 1 | . . . . . . . . . . . . . . . . . . 1 . . . . . . . . . . Weapon Failures 12 | . . . . . . . . . . . 2 . . . . 2 . . . . . . . . 1 . 7 . Overload Shots 1 | . . . . . . 1 . . . . . . . . . . . . . . . . . . . . . . Overflow Damage 30352 | . 3 42 28 126 . 188 42 . 27 36 652 76 . 96 . 538 . . 301 209 674 935 3222 1863 3472 7261 8692 1869 Projectiles 29461 | . . . . . . 171 40 . 27 36 482 66 . . . 379 . . 262 202 623 935 3222 1863 3405 7187 8692 1869 Explosions 412 | . 3 . . . . 17 2 . . . 170 10 . . . 125 . . 39 7 . . . . 39 . . . Melee 479 | . . 42 28 126 . . . . . . . . . 96 . 34 . . . . 51 . . . 28 74 . . Knockbacks 226 | . . . . . . 4 . . 1 2 9 . . . . 9 4 . 9 . 2 20 38 8 1 17 28 74 Impact 4 | . . . . . . . . . . . . . . . . . . . . . 2 . . . . 1 1 . Kinetic 203 | . . . . . . 4 . . 1 1 7 . . . . 9 4 . 9 . . 18 30 7 1 15 23 74 Secondary 19 | . . . . . . . . . . 1 2 . . . . . . . . . . 2 8 1 . 1 4 . Self-Inflicted Damage 859 | . 20 66 . 17 . 60 59 . . 95 . . 16 . 32 261 31 20 . 37 . . . . 91 . 54 . Shots 32 | . 2 4 . 1 . 2 3 . . 1 . . 1 . 2 9 2 1 . 2 . . . . 1 . 1 . Rammed 31 | . 3 . 8 3 . 1 . . . 3 1 . . . . 2 . . . . . . . . 4 4 2 . Targets Rammed 51 | . 4 . 10 3 . 1 . . . 4 4 . . . . 5 . . . . 6 . . 2 6 4 2 . Kicked 16 | . . . . . . . . . . . 3 . . . . 3 . . . . 6 . . 2 2 . . . Crushed 4 | . 1 . 2 . . . . . . 1 . . . . . . . . . . . . . . . . . . Highest Temperature 434 | . 34 . 251 195 284 241 306 326 278 434 418 138 372 . 128 183 60 15 26 . . 335 322 392 348 87 372 350 Average Temperature 89 | . 8 . 41 54 89 80 113 131 118 160 133 54 102 . 72 78 60 15 16 . . 111 114 150 97 46 151 130 Received Heat Transfer 2887 | . 105 90 531 234 81 111 153 36 . 222 36 72 81 . 27 400 . 9 46 . 21 . 420 37 64 60 32 19 Effects 10 | . . . 3 . . . 2 . . . . . . . . . . . . . . 1 . . . . 4 . Energy Bleed 1 | . . . . . . . . . . . . . . . . . . . . . . . . . . . 1 . Interference 9 | . . . 3 . . . 2 . . . . . . . . . . . . . . 1 . . . . 3 . Siege Activations 3 | . . . . . . . . . . . . . . . . . . . . . . . . . . . 3 . Total Turns 50 | . . . . . . . . . . . . . . . . . . . . . . . . . . . 50 . Longest Duration 19 | . . . . . . . . . . . . . . . . . . . . . . . . . . . 19 . Martial Activations . | . . . . . . . . . . . . . . . . . . . . . . . . . . . . . Shielding Activations . | . . . . . . . . . . . . . . . . . . . . . . . . . . . . . Robots Disrupted 1 | . . . . . . . . . . . . . . . . 1 . . . . . . . . . . . . Combat Hostiles 1 | . . . . . . . . . . . . . . . . 1 . . . . . . . . . . . . Robots Corrupted 34 | . . 1 . 1 . . 2 3 . 3 . 1 2 . . 6 1 1 6 . 2 1 . . 1 2 1 . Combat Hostiles 24 | . . 1 . . . . 1 3 . . . 1 2 . . 5 1 1 6 . . . . . 1 1 1 . Parts Fried 78 | . . 1 . 2 . . 7 3 . 2 . 2 2 . . 24 1 7 14 . 5 . . . 2 5 1 . Impact Corruptions 21 | . . 2 . 1 . . . . . . . . . . . . . . . . 2 3 3 1 2 4 3 . Robots Melted 6 | . . . . . . . . . . . . . . . . . . . . . . . . . . 2 4 . Combat Hostiles 6 | . . . . . . . . . . . . . . . . . . . . . . . . . . 2 4 . Parts Melted 25 | . . . . . 2 . 5 . . . . 2 2 . . 1 . . 1 . 1 . . . . 2 9 . Heat Transferred 6570 | . . . . 50 777 980 1300 50 . . 500 703 222 . . 572 . 100 500 . . . . . . . . 816 Parts Sabotaged . | . . . . . . . . . . . . . . . . . . . . . . . . . . . . . Parts Stolen . | . . . . . . . . . . . . . . . . . . . . . . . . . . . . . Parts Stripped . | . . . . . . . . . . . . . . . . . . . . . . . . . . . . . Power Chain Reactions 9 | . . . . 1 . 1 . 1 . . . . . . . . . 2 4 . . . . . . . . . Alert | -11 -10 -10 -8 -8 -8 -6 -6 -6 -6 -6 -5 -5 -5 -5 -4 -4 -4 -4 -4 -3 -3 -3 -2 -2 -2 -1 -1 -1 ------- Run | Yrd Mat Sub Mat Sto Rec Fac Ext Cet Arc Hub Fac Upp Upp Zhi Pro Fac Upp Upp War Pro Res Tes Res Qua Sec Acc Com Ac0 Maximum Alert Level 5 | . 1 . 2 1 . 2 2 2 1 4 4 . . . . 4 . . . . 1 . 4 3 3 5 5 . Low Security (%) 38 | 100 96 . 70 71 100 2 . . 27 11 . . . . . 31 . . . . . 100 34 . 4 . . . Level 1 16 | . 3 . 20 28 . 43 65 72 72 1 1 . . . . 9 . . . . 100 . 36 8 14 . . . Level 2 14 | . . . 9 . . 53 34 27 . 14 86 . . . . 26 . . . . . . 8 32 61 26 . . Level 3 5 | . . . . . . . . . . 14 10 . . . . 8 . . . . . . 17 59 20 27 . . Level 4 5 | . . . . . . . . . . 58 1 . . . . 24 . . . . . . 3 . . 21 2 . Level 5 18 | . . . . . . . . . . . . . . . . . . . . . . . . . . 25 92 . High Security . | . . . . . . . . . . . . . . . . . . . . . . . . . . . 4 . Max Security . | . . . . . . . . . . . . . . . . . . . . . . . . . . . . . Peak Influence 2053 | 15 214 . 426 270 63 604 574 459 277 1381 1200 . . . . 1599 . . . . 371 180 1324 803 871 1939 2053 . Initial 1236 | . . . . 57 42 250 255 314 150 65 667 . . . . . . . . . 304 142 7 744 390 518 1236 . Average 379 | 3 96 . 165 110 6 407 370 370 220 960 608 . . . . 604 . . . . 295 85 408 656 550 1152 1694 . Influence Increases 22395 | 30 524 20 1200 675 260 1034 933 367 187 1881 1079 255 200 15 127 2470 50 286 442 592 328 416 1901 768 1191 1849 1749 1566 Destroy 0b10 Robot/C 9320 | . 220 20 700 300 60 320 460 160 80 540 260 180 140 . 100 940 40 240 300 360 100 120 960 340 540 980 860 . Destroy 0b10 Robot/NC 1140 | 30 70 . 140 75 10 85 45 10 5 35 50 . . 15 . 55 . . 10 . 65 40 10 30 30 190 140 . Destroy Leader 1840 | . 60 . 210 90 . 88 36 . . 160 52 . 20 . 10 206 10 30 . 40 48 28 214 62 126 198 152 . Allied During Kill 1635 | . . . . 10 7 62 228 170 85 630 . . 25 . 17 21 . 16 132 192 40 . . . . . . . Successful Hack 783 | . 41 . 36 52 31 . 21 . . . 75 . . . . 49 . . . . 50 162 . 38 132 96 . . Select Force Hacks 350 | . 60 . 60 30 150 . . . . 50 . . . . . . . . . . . . . . . . . . Disable Machine 1875 | . 30 . . 105 . 120 60 15 15 180 255 . . . . 510 . . . . 15 30 150 105 105 45 60 75 Anti-Garrison Action 200 | . . . . . . . . . . 150 . . . . . . . . . . . . . . . . 50 . Destroy Structure 4102 | . 28 . 9 13 2 94 38 12 2 136 252 . . . . 554 . . . . 10 36 432 88 198 265 442 1491 Advance Influence 250 | . . . . . . 250 . . . . . . . . . . . . . . . . . . . . . . Partial Spotted 120 | . . . 15 . . . . . . . . . . . . . . . . . . . . 30 60 15 . . Lose Combat Pursuer 780 | . 15 . 30 . . 15 45 . . . 135 75 15 . . 135 . . . . . . 135 75 . 60 45 . Influence Decreases 20859 | 30 378 166 1062 705 368 512 893 554 375 706 1241 666 340 664 127 871 790 354 885 488 526 656 591 1398 1020 781 887 2825 Entered New Map 9903 | . . 71 . 81 66 . 267 248 225 122 695 444 150 649 . . 592 164 791 348 148 112 7 580 304 347 697 2795 Time Decay 8178 | 30 378 95 608 474 272 392 546 246 110 334 386 222 180 15 87 551 198 190 94 120 318 380 574 368 416 404 190 . Lost Part 180 | . . . 40 . . 30 . . . . 10 . 10 . . . . . . . . 30 10 . . 20 . 30 Lost Ally 550 | . . . . . 30 90 80 60 40 100 . . . . 40 20 . . . 20 60 . . . . 10 . . Purge Threat 2048 | . . . 414 150 . . . . . 150 150 . . . . 300 . . . . . 134 . 450 300 . . . Squads Dispatched 102 | . 3 . 5 3 . 7 1 . . 11 8 . . . . 14 . . . . 8 3 1 9 8 9 12 . Investigation 14 | . 2 . 2 3 . . . . . 1 . . . . . 2 . . . . 2 . 1 1 . . . . Extermination 24 | . . . . . . 1 . . . . 3 . . . . 7 . . . . 1 2 . 2 3 4 1 . Reinforcement 33 | . 1 . 2 . . 3 1 . . 4 2 . . . . 2 . . . . 5 1 . 6 1 4 1 . Assault 22 | . . . . . . . . . . 5 . . . . . 2 . . . . . . . . 4 1 10 . Garrison 9 | . . . 1 . . 3 . . . 1 3 . . . . 1 . . . . . . . . . . . . Intercept . | . . . . . . . . . . . . . . . . . . . . . . . . . . . . . Searches Triggered . | . . . . . . . . . . . . . . . . . . . . . . . . . . . . . Unchained Authorized 3 | . . . . . . . . . . . . . . . . . . . . . . 1 . 1 . 1 . . Construction Impeded 9 | . . . 1 . . 1 1 . . 1 1 . . . . 1 . . . . . . . 1 . 2 . . Haulers Reinforced 8 | . . . . . . 1 . . . 2 . . . . . 1 . . . . 2 . . 2 . . . . Active Scanning Responses . | . . . . . . . . . . . . . . . . . . . . . . . . . . . . . Cargo Convoy Interrupts . | . . . . . . . . . . . . . . . . . . . . . . . . . . . . . Stealth | -11 -10 -10 -8 -8 -8 -6 -6 -6 -6 -6 -5 -5 -5 -5 -4 -4 -4 -4 -4 -3 -3 -3 -2 -2 -2 -1 -1 -1 --------- Run | Yrd Mat Sub Mat Sto Rec Fac Ext Cet Arc Hub Fac Upp Upp Zhi Pro Fac Upp Upp War Pro Res Tes Res Qua Sec Acc Com Ac0 Distress Signals 62 | . . . 2 3 2 1 2 2 . 2 1 . . . . 1 . . 2 . 9 1 7 1 1 1 24 . Communications Jammed . | . . . . . . . . . . . . . . . . . . . . . . . . . . . . . Distress Signals . | . . . . . . . . . . . . . . . . . . . . . . . . . . . . . Times Spotted 707 | . 27 16 46 17 7 25 28 8 1 26 27 12 7 . 8 81 2 9 27 15 11 18 63 31 26 54 50 65 Peak Tracking Total 13 | . 4 2 6 4 3 5 5 5 1 8 6 9 4 . 5 9 2 5 13 5 4 7 7 6 4 9 11 5 Tactical Retreats 33 | . 1 . 2 . . 1 1 . . . 4 2 1 . . 6 . . . . . . 5 4 . 3 2 1 Traps | -11 -10 -10 -8 -8 -8 -6 -6 -6 -6 -6 -5 -5 -5 -5 -4 -4 -4 -4 -4 -3 -3 -3 -2 -2 -2 -1 -1 -1 ------- Run | Yrd Mat Sub Mat Sto Rec Fac Ext Cet Arc Hub Fac Upp Upp Zhi Pro Fac Upp Upp War Pro Res Tes Res Qua Sec Acc Com Ac0 Traps Triggered 20 | . . 1 . 4 . . . . . . 1 . 1 . . 3 . . 1 . . . . 2 3 1 3 . Indirectly 3 | . . . . . . . . . . . . . . . . 2 . . 1 . . . . . . . . . Trap Hack Attempts . | . . . . . . . . . . . . . . . . . . . . . . . . . . . . . Triggered . | . . . . . . . . . . . . . . . . . . . . . . . . . . . . . Disarmed . | . . . . . . . . . . . . . . . . . . . . . . . . . . . . . Reprogrammed . | . . . . . . . . . . . . . . . . . . . . . . . . . . . . . Reused . | . . . . . . . . . . . . . . . . . . . . . . . . . . . . . Traps Extracted . | . . . . . . . . . . . . . . . . . . . . . . . . . . . . . Installed . | . . . . . . . . . . . . . . . . . . . . . . . . . . . . . Triggered . | . . . . . . . . . . . . . . . . . . . . . . . . . . . . . Machines | -11 -10 -10 -8 -8 -8 -6 -6 -6 -6 -6 -5 -5 -5 -5 -4 -4 -4 -4 -4 -3 -3 -3 -2 -2 -2 -1 -1 -1 ---------- Run | Yrd Mat Sub Mat Sto Rec Fac Ext Cet Arc Hub Fac Upp Upp Zhi Pro Fac Upp Upp War Pro Res Tes Res Qua Sec Acc Com Ac0 Machines Disabled 134 | . 2 1 . 7 . 8 4 1 1 13 17 . . . . 34 . . 2 . 1 4 11 7 7 3 6 5 Max in Single Turn 10 | . 2 1 . 1 . 2 1 1 . 4 4 . . . . 10 . . 1 . . 1 2 1 2 1 2 1 Garrison Access 7 | . . . 1 . . . . . . 1 . . . . . 1 . . . . 1 . 3 . . . . . Phase Generator 1 | . . . . . . . . . . . . . . . . . . . . . . . . . . . 1 . Network Hub 3 | . . . . . . . . . . 3 . . . . . . . . . . . . . . . . . . Machines Repaired . | . . . . . . . . . . . . . . . . . . . . . . . . . . . . . Machines Dismantled 2 | . . . . . . . 2 . . . . . . . . . . . . . . . . . . . . . Machines Sabotaged 1 | . . . . . . . . . . 1 . . . . . . . . . . . . . . . . . . Overloaded Fab Kills . | . . . . . . . . . . . . . . . . . . . . . . . . . . . . . Hacking | -11 -10 -10 -8 -8 -8 -6 -6 -6 -6 -6 -5 -5 -5 -5 -4 -4 -4 -4 -4 -3 -3 -3 -2 -2 -2 -1 -1 -1 --------- Run | Yrd Mat Sub Mat Sto Rec Fac Ext Cet Arc Hub Fac Upp Upp Zhi Pro Fac Upp Upp War Pro Res Tes Res Qua Sec Acc Com Ac0 Machines Accessed 129 | . 9 2 15 12 12 . 8 . . 3 7 1 . 4 . 11 2 . 4 . 5 11 3 6 10 4 . . Terminals 87 | . 7 . 11 10 6 . 8 . . 2 6 . . . . 9 . . . . 3 8 . 5 8 4 . . Fabricators 2 | . . . . . . . . . . . . . . . . 1 . . . . . 1 . . . . . . Repair Stations 2 | . . . . . . . . . . . . . . . . . . . . . 1 . . . 1 . . . Recycling Units 10 | . 2 . 2 1 5 . . . . . . . . . . . . . . . . . . . . . . . Scanalyzers 6 | . . . 1 . . . . . . . 1 . . . . . . . . . . 2 . 1 1 . . . Garrison Access 8 | . . . 1 1 . . . . . 1 . . . . . 1 . . . . 1 . 3 . . . . . Total Hacks 502 | . 37 6 59 38 31 . 14 . . 6 42 1 . 17 . 60 6 . 7 . 20 44 6 32 62 14 . . Successful 248 | . 26 6 36 24 20 . 5 . . 2 11 1 . 17 . 18 6 . 7 . 8 16 3 11 27 4 . . Failed 252 | . 11 . 22 14 10 . 9 . . 4 31 . . . . 42 . . . . 12 28 3 21 35 10 . . Catastrophic 58 | . 1 . 2 2 . . 1 . . 1 6 . . . . 13 . . . . 4 8 1 2 11 6 . . Database Lockouts 2 | . . . 1 . 1 . . . . . . . . . . . . . . . . . . . . . . . Manual 235 | . 28 . 32 23 21 . 3 1 . 2 27 . . . . 30 . . . . 12 12 . 12 24 7 1 . Terminals 370 | . 30 . 48 33 18 . 14 . . 5 40 . . . . 50 . . . . 17 32 . 27 42 14 . . Fabricators 9 | . . . . . . . . . . . . . . . . 7 . . . . . 2 . . . . . . Repair Stations 12 | . . . . . . . . . . . . . . . . . . . . . 2 . . . 10 . . . Recycling Units 28 | . 7 . 8 2 11 . . . . . . . . . . . . . . . . . . . . . . . Scanalyzers 29 | . . . 2 . . . . . . . 2 . . . . . . . . . . 10 . 5 10 . . . Garrison Access 15 | . . . 1 3 . . . . . 1 . . . . . 3 . . . . 1 . 6 . . . . . Terminal Hacks 131 | . 12 6 13 10 4 . 4 . . 1 7 1 . 17 . 12 6 . 7 . 3 6 . 7 13 2 . . Record 21 | . . 5 . . . . . . . . . . . 5 . . 5 . 6 . . . . . . . . . Part Schematic 9 | . 1 . . 1 1 . . . . . . . . 4 . . . . . . 2 . . . . . . . Robot Analysis 10 | . 4 . . . 1 . . . . . 1 . . 4 . . . . . . . . . . . . . . Prototype ID Bank 19 | . 3 . 4 1 . . . . . . 1 . . 4 . 2 . . . . . 1 . 1 2 . . . Open Door 13 | . . . . 5 . . 3 . . . . 1 . . . . 1 . 1 . . . . 1 1 . . . Branch Access Points 3 | . . . . . . . . . . . 1 . . . . 1 . . . . . . . . . 1 . . Machine Index 1 | . . . . . . . . . . . . . . . . 1 . . . . . . . . . . . . Terminal Index 2 | . . . . . . . . . . . . . . . . . . . . . . 1 . . . 1 . . Scanalyzer Index 2 | . . . 1 . . . . . . . . . . . . . . . . . 1 . . . . . . . Alert Level 12 | . . . 1 . . . . . . . 1 . . . . 3 . . . . . 2 . 2 3 . . . Unreport Threat 14 | . . . 3 1 . . . . . 1 1 . . . . 2 . . . . . 1 . 3 2 . . . Locate Traps 11 | . 2 . 2 1 . . 1 . . . 1 . . . . 1 . . . . . . . . 3 . . . Dispatch Records 2 | . 1 . . . . . . . . . . . . . . . . . . . . 1 . . . . . . Recall Extermination 1 | . . . . . . . . . . . . . . . . 1 . . . . . . . . . . . . Zone Layout 8 | . 1 . 2 1 . . . . . . 1 . . . . 1 . . . . . . . . 2 . . . Proto ID Catalog 1 | . . 1 . . . . . . . . . . . . . . . . . . . . . . . . . . Release Object 2 | . . . . . 2 . . . . . . . . . . . . . . . . . . . . . . . Fabricator Hacks 3 | . . . . . . . . . . . . . . . . 2 . . . . . 1 . . . . . . Load Schematic 1 | . . . . . . . . . . . . . . . . 1 . . . . . . . . . . . . Build 2 | . . . . . . . . . . . . . . . . 1 . . . . . 1 . . . . . . Repair Station Hacks 1 | . . . . . . . . . . . . . . . . . . . . . . . . . 1 . . . Scan Component 1 | . . . . . . . . . . . . . . . . . . . . . . . . . 1 . . . Recycling Unit Hacks 5 | . 1 . 1 . 3 . . . . . . . . . . . . . . . . . . . . . . . Retrieve Components 5 | . 1 . 1 . 3 . . . . . . . . . . . . . . . . . . . . . . . Scanalyzer 14 | . . . 2 . . . . . . . 1 . . . . . . . . . . 4 . 2 5 . . . Insert Component 11 | . . . . . . . . . . . . . . . . . . . . . . 4 . 2 5 . . . Retrieve Study 3 | . . . 2 . . . . . . . 1 . . . . . . . . . . . . . . . . . Garrison Access Hacks 6 | . . . 1 . . . . . . . . . . . . 1 . . . . 1 . 3 . . . . . Seal Access 6 | . . . 1 . . . . . . . . . . . . 1 . . . . 1 . 3 . . . . . Unauthorized Hacks 88 | . 13 . 19 14 13 . 1 . . 1 3 . . . . 3 . . . . 4 5 . 2 8 2 . . Terminals 75 | . 11 . 17 12 8 . 1 . . 1 3 . . . . 3 . . . . 3 5 . 2 7 2 . . Track 9 | . 1 . . 1 2 . . . . . . . . . . . . . . . . 2 . . 3 . . . Assimilate 2 | . 1 . . . . . . . . . . . . . . . . . . . . . . . . 1 . . Botnet 32 | . 3 . 6 4 1 . . . . . 3 . . . . 3 . . . . 3 3 . 2 3 1 . . Disrupt 1 | . . . . . . . . . . . . . . . . . . . . . . . . . 1 . . . Operators 5 | . 1 . 2 2 . . . . . . . . . . . . . . . . . . . . . . . . Skim 25 | . 5 . 9 5 5 . 1 . . . . . . . . . . . . . . . . . . . . . Sabotage 1 | . . . . . . . . . . 1 . . . . . . . . . . . . . . . . . . Fabricators . | . . . . . . . . . . . . . . . . . . . . . . . . . . . . . Repair Stations 1 | . . . . . . . . . . . . . . . . . . . . . 1 . . . . . . . Patch 1 | . . . . . . . . . . . . . . . . . . . . . 1 . . . . . . . Recycling Units 10 | . 2 . 2 1 5 . . . . . . . . . . . . . . . . . . . . . . . Tunnel 10 | . 2 . 2 1 5 . . . . . . . . . . . . . . . . . . . . . . . Scanalyzers 1 | . . . . . . . . . . . . . . . . . . . . . . . . . 1 . . . Researchers 1 | . . . . . . . . . . . . . . . . . . . . . . . . . 1 . . . Garrison Access 1 | . . . . 1 . . . . . . . . . . . . . . . . . . . . . . . . Reprogram 1 | . . . . 1 . . . . . . . . . . . . . . . . . . . . . . . . Data Cores Recovered 6 | . . . 2 1 . . . . . . . . . . . . . . . . 2 . . . . 1 . . Used . | . . . . . . . . . . . . . . . . . . . . . . . . . . . . . Hacking Detections 95 | . 9 . 13 10 8 . 7 . . 2 6 . . . . 10 . . . . 3 9 1 4 9 4 . . Full Trace Events 3 | . . . . 1 . . . . . . . . . . . 1 . . . . . . . 1 . . . . Feedback Events . | . . . . . . . . . . . . . . . . . . . . . . . . . . . . . Feedback Blocked . | . . . . . . . . . . . . . . . . . . . . . . . . . . . . . Robot Schematics Acquired 2 | . . . . . . . . . . . . . . . . . . . . . . . . . 2 . . . Robots Built . | . . . . . . . . . . . . . . . . . . . . . . . . . . . . . Authchips . | . . . . . . . . . . . . . . . . . . . . . . . . . . . . . Time . | . . . . . . . . . . . . . . . . . . . . . . . . . . . . . Total Robot Build Rating . | . . . . . . . . . . . . . . . . . . . . . . . . . . . . . Part Schematics Acquired 18 | . 1 . . 1 1 . . . . . . . . 4 . . . . . . 2 . . 5 4 . . . Parts Built 2 | . . . . . . . . . . . . . . . . 1 . . . . . 1 . . . . . . Authchips . | . . . . . . . . . . . . . . . . . . . . . . . . . . . . . Time 243 | . . . . . . . . . . . . . . . . 169 . . . . . 74 . . . . . . Total Part Build Rating 15 | . . . . . . . . . . . . . . . . 6 . . . . . 9 . . . . . . Part Studies Acquired 3 | . . . 2 . . . . . . . 1 . . . . . . . . . . . . . . . . . Parts Repaired . | . . . . . . . . . . . . . . . . . . . . . . . . . . . . . Time . | . . . . . . . . . . . . . . . . . . . . . . . . . . . . . Parts Recycled . | . . . . . . . . . . . . . . . . . . . . . . . . . . . . . Recycled Matter . | . . . . . . . . . . . . . . . . . . . . . . . . . . . . . Retrieved Matter . | . . . . . . . . . . . . . . . . . . . . . . . . . . . . . Retrieved Components 28 | . 9 . 3 . 16 . . . . . . . . . . . . . . . . . . . . . . . Parts Scanalyzed . | . . . . . . . . . . . . . . . . . . . . . . . . . . . . . Part Schematics Acquired . | . . . . . . . . . . . . . . . . . . . . . . . . . . . . . Parts Damaged . | . . . . . . . . . . . . . . . . . . . . . . . . . . . . . Bothacking | -11 -10 -10 -8 -8 -8 -6 -6 -6 -6 -6 -5 -5 -5 -5 -4 -4 -4 -4 -4 -3 -3 -3 -2 -2 -2 -1 -1 -1 ------------ Run | Yrd Mat Sub Mat Sto Rec Fac Ext Cet Arc Hub Fac Upp Upp Zhi Pro Fac Upp Upp War Pro Res Tes Res Qua Sec Acc Com Ac0 Used RIF Installer . | . . . . . . . . . . . . . . . . . . . . . . . . . . . . . Robots Hacked 3 | . . . . . . . . . . . . . . . . 2 . 1 . . . . . . . . . . Non-combat 1 | . . . . . . . . . . . . . . . . 1 . . . . . . . . . . . . Combat . | . . . . . . . . . . . . . . . . . . . . . . . . . . . . . Robot Hacks Applied 1 | . . . . . . . . . . . . . . . . 1 . . . . . . . . . . . . find_chute 1 | . . . . . . . . . . . . . . . . 1 . . . . . . . . . . . . Manual 2 | . . . . . . . . . . . . . . . . 1 . 1 . . . . . . . . . . Relay Couplers Released 4 | . . . . . . . . . . 3 . . . . . . . . . . . . 1 . . . . . Machine Destruction 4 | . . . . . . . . . . 3 . . . . . . . . . . . . 1 . . . . . Fabnet Peak Effective % . | . . . . . . . . . . . . . . . . . . . . . . . . . . . . . Robots Rewired 27 | . . . . . 9 . 10 . . . . 2 . . . 1 . . 5 . . . . . . . . . Allies Hacked . | . . . . . . . . . . . . . . . . . . . . . . . . . . . . . Hacks Repelled . | . . . . . . . . . . . . . . . . . . . . . . . . . . . . . Allies | -11 -10 -10 -8 -8 -8 -6 -6 -6 -6 -6 -5 -5 -5 -5 -4 -4 -4 -4 -4 -3 -3 -3 -2 -2 -2 -1 -1 -1 -------- Run | Yrd Mat Sub Mat Sto Rec Fac Ext Cet Arc Hub Fac Upp Upp Zhi Pro Fac Upp Upp War Pro Res Tes Res Qua Sec Acc Com Ac0 Total Allies 46 | . . . . 3 9 . 18 5 . . . 2 . . . 2 . 1 5 . . . . . . 1 . . Largest Group 17 | . . . . 3 10 10 13 17 15 12 . 2 2 2 2 1 . 1 6 5 4 . . . . 1 . . Highest-Rated Group 955 | . . . . 48 159 159 516 955 888 704 . 58 58 58 58 116 . 116 404 340 224 . . . . 45 . . Highest-Rated Ally 159 | . . . . 16 27 27 159 144 128 96 . 29 29 29 29 116 . 116 116 116 56 . . . . 45 . . Total Orders 25 | . . . . . 4 1 . 7 . . . . . . 2 . . . 11 . . . . . . . . . STAY 10 | . . . . . 2 . . 2 . . . . . . 1 . . . 5 . . . . . . . . . FOLLOW 13 | . . . . . 2 . . 5 . . . . . . 1 . . . 5 . . . . . . . . . GUARD 2 | . . . . . . 1 . . . . . . . . . . . . 1 . . . . . . . . . Ally Attacks 442 | . . . . 3 16 24 121 33 20 110 . . 23 . 4 4 . 11 21 24 28 . . . . . . . Total Damage 12298 | . . . . 49 137 352 2570 696 512 3731 . . 248 . 59 641 . 279 1144 764 1116 . . . . . . . Kills 82 | . . . . 1 3 1 12 6 3 28 . . 2 . . 3 . 3 5 11 4 . . . . . . . Allies Corrupted 6 | . . . . . . . . . . 5 . . . . . 1 . . . . . . . . . . . . Allies Melted . | . . . . . . . . . . . . . . . . . . . . . . . . . . . . . Intel | -11 -10 -10 -8 -8 -8 -6 -6 -6 -6 -6 -5 -5 -5 -5 -4 -4 -4 -4 -4 -3 -3 -3 -2 -2 -2 -1 -1 -1 ------- Run | Yrd Mat Sub Mat Sto Rec Fac Ext Cet Arc Hub Fac Upp Upp Zhi Pro Fac Upp Upp War Pro Res Tes Res Qua Sec Acc Com Ac0 Active Infowar (turns) 16556 | . 397 1301 . . . 570 . . . . 912 460 373 306 638 2997 416 399 804 251 711 895 1768 852 1007 875 624 . Optics 14288 | . . . . . . . . . . . 912 460 373 306 638 2997 416 399 804 251 711 895 1768 852 1007 875 624 . Traps 570 | . . . . . . 570 . . . . . . . . . . . . . . . . . . . . . . Seismic 1698 | . 397 1301 . . . . . . . . . . . . . . . . . . . . . . . . . . Robot Analysis Total 10 | . 4 . . . 1 . . . . . 1 . . 4 . . . . . . . . . . . . . . Derelict Logs Recovered 8 | . . 2 . . . . . . . . . . 1 . 1 . 3 1 . . . . . . . . . . Drone Launches . | . . . . . . . . . . . . . . . . . . . . . . . . . . . . . Drone Recoveries . | . . . . . . . . . . . . . . . . . . . . . . . . . . . . . Exploration | -11 -10 -10 -8 -8 -8 -6 -6 -6 -6 -6 -5 -5 -5 -5 -4 -4 -4 -4 -4 -3 -3 -3 -2 -2 -2 -1 -1 -1 ------------- Run | Yrd Mat Sub Mat Sto Rec Fac Ext Cet Arc Hub Fac Upp Upp Zhi Pro Fac Upp Upp War Pro Res Tes Res Qua Sec Acc Com Ac0 Turns Passed 37895 | 124 1698 3004 3284 1556 3756 928 1561 529 237 755 915 460 373 306 638 2997 416 399 804 251 711 895 1768 852 1007 961 5705 1005 Spaces Moved 27292 | 47 783 1128 1370 665 1739 479 926 253 137 392 580 332 303 176 343 1879 371 317 739 202 753 1047 2439 839 1305 1189 5924 635 Core 204 | 47 157 . . . . . . . . . . . . . . . . . . . . . . . . . . . Treads 12359 | . 626 1128 1370 665 1419 . . . 48 392 84 . . . . 325 . . . . . . . . 998 1189 4115 . Legs 9028 | . . . . . 197 33 926 253 89 . 477 . . . . 1326 65 . 242 202 591 . 2009 839 307 . 837 635 Wheels . | . . . . . . . . . . . . . . . . . . . . . . . . . . . . . Hover 1500 | . . . . . 99 . . . . . 19 332 303 176 343 228 . . . . . . . . . . . . Flight 4201 | . . . . . 24 446 . . . . . . . . . . 306 317 497 . 162 1047 430 . . . 972 . Fastest Speed 32 | 50 150 160 160 200 81 81 104 104 104 150 112 112 112 112 112 92 88 88 88 82 82 48 48 56 56 56 32 93 Average Speed 106 | 117 184 239 199 200 162 121 132 104 120 177 135 112 112 112 112 133 99 88 88 87 82 69 54 56 56 56 65 93 Slowest Speed 307 | 200 240 240 246 200 200 151 135 104 150 203 307 112 112 112 112 155 155 88 88 88 82 82 56 56 56 56 114 197 Overloaded Moves . | . . . . . . . . . . . . . . . . . . . . . . . . . . . . . Propulsion Burnouts . | . . . . . . . . . . . . . . . . . . . . . . . . . . . . . Robots Hopped 10 | . . . . . . 3 . . . . . . . . . . . . . . 2 5 . . . . . . Potential Cave-ins 4 | . . . . . . . . . . . . . . . . 2 . . . . . . 2 . . . . . Cave-ins Triggered . | . . . . . . . . . . . . . . . . . . . . . . . . . . . . . Teleports 2 | . . . . . . . . . . . . . . . . . . . . . . . . . . . 1 1 Exploration Rate (%) 60 | 3 98 61 94 76 98 12 85 69 79 50 21 55 56 61 54 51 64 63 90 48 26 93 73 56 65 26 86 37 Regions Visited 28 Branch Regions 20 Pre-discovered Areas 21 | . 3 3 3 2 6 . . . . . . . 1 3 . . . . . . . . . . . . . . Known Exits Taken 10 | . . 1 1 1 . 1 . . . 1 1 . . . . 1 . . . 1 1 . . . . 1 . . Unknown Exits Taken 18 | 1 1 . . . 1 . 1 1 1 . . 1 1 1 1 . 1 1 1 . . 1 1 1 1 . 1 . Scrap Searched 13 | . . 1 . . . . . . . . . 1 2 . 3 . 3 2 . 1 . . . . . . . . Spaces Dug 144 | . . 4 3 . 1 28 2 . . 6 9 . . . 1 25 . 6 . . . 6 15 5 9 10 14 . Terrain Destroyed 1943 | . 25 106 3 3 1 144 43 7 1 188 132 13 3 . 48 236 5 8 12 139 3 18 181 31 66 80 161 286 Melee 17 | . . 4 3 . 1 . . . . . . . . . . 9 . . . . . . . . . . . . Projectile 799 | . . . . . . 8 8 2 1 17 38 13 3 . 1 52 5 . 4 4 3 18 102 31 22 80 101 286 AOE 1127 | . 25 102 . 3 . 136 35 5 . 171 94 . . . 47 175 . 8 8 135 . . 79 . 44 . 60 . Terrain Rammed . | . . . . . . . . . . . . . . . . . . . . . . . . . . . . . Walls Destroyed . | . . . . . . . . . . . . . . . . . . . . . . . . . . . . . Machines Disabled . | . . . . . . . . . . . . . . . . . . . . . . . . . . . . . Actions | -11 -10 -10 -8 -8 -8 -6 -6 -6 -6 -6 -5 -5 -5 -5 -4 -4 -4 -4 -4 -3 -3 -3 -2 -2 -2 -1 -1 -1 --------- Run | Yrd Mat Sub Mat Sto Rec Fac Ext Cet Arc Hub Fac Upp Upp Zhi Pro Fac Upp Upp War Pro Res Tes Res Qua Sec Acc Com Ac0 Total 34079 | 81 917 1315 1693 792 2649 744 1169 511 205 431 660 392 322 267 592 2223 409 424 862 257 818 1150 2719 1155 1504 1361 7599 858 Wait 3848 | . 8 28 45 18 786 180 46 236 63 15 17 2 1 66 244 113 31 88 48 38 12 18 49 181 85 19 1400 11 Move 27244 | 46 782 1127 1369 664 1738 472 925 252 136 391 579 331 302 175 342 1879 370 316 738 201 748 1036 2438 838 1304 1188 5923 634 Hop 10 | . . . . . . 3 . . . . . . . . . . . . . . 2 5 . . . . . . Pick Up 249 | 8 24 31 36 5 9 6 9 5 1 . 4 2 2 3 . 12 . 1 6 . 10 4 14 17 8 8 24 . Fast Attach 111 | 3 2 2 14 2 3 2 3 1 . . . . . 6 . 10 1 . 7 . 3 7 13 9 2 4 12 5 Attach 61 | 3 1 3 5 . . 2 3 1 . . 2 2 2 1 1 11 1 3 4 2 1 3 . . . 4 2 4 Detach 51 | . 1 . . . 2 1 3 1 . . . 2 1 . 1 16 2 3 4 2 2 3 1 . 1 1 3 1 Swap 158 | . 15 39 25 11 4 4 1 . . 1 5 . . . . 12 . 1 2 . 5 1 9 6 2 . 10 5 Drop 280 | . 15 18 51 14 14 7 7 6 . . 3 2 . 8 . 18 . . 13 . 4 7 25 25 11 3 28 1 Fire 1732 | 21 64 39 132 57 22 66 63 9 5 20 46 28 14 . 3 130 4 12 40 14 25 66 170 77 85 130 193 197 Melee 72 | . . 27 6 12 1 . . . . . . . . 8 . 18 . . . . . . . . . . . . Ram 1 | . . . . . . 1 . . . . . . . . . . . . . . . . . . . . . . Kick 15 | . . . . . . . . . . . 3 . . . . 2 . . . . 6 . . 2 2 . . . Crush 34 | . 4 . 10 3 . . . . . 4 1 . . . . 2 . . . . . . . . 4 4 2 . Escape Stasis 8 | . . . . 6 . . . . . . . . . . . . . . . . . . . . . . 2 . Rewire 188 | . 1 . . . 70 . 93 . . . . 23 . . 1 . . . . . . . . . . . . . Trap . | . . . . . . . . . . . . . . . . . . . . . . . . . . . . . Miscellaneous 17 | . . 1 . . . . 16 . . . . . . . . . . . . . . . . . . . . . Route ------- -11/Scrapyard -10/Materials (discovered 6 exits: *Mat x3 / [*Min x2] / *Sub) -10/Subcaves (discovered 3 exits: *Mat x2 / Rec) -8/Materials (discovered 5 exits: *Fac x3 / *Sto x2) -8/Storage (discovered 2 exits: Fac / *Rec) -8/Recycling -6/Factory (discovered 5 exits: Fac x3 / Low / *Ext) -6/Extension (discovered 2 exits: *Fac / *Cet) -6/Cetus (discovered 2 exits: *Fac / [*Arc]) -6/Archives (discovered 3 exits: *Fac / *Hub x2) -6/Hub_04(d) (discovered 2 exits: *Fac x2) -5/Factory (discovered 2 exits: *Upp x2) -5/Upper Caves -5/Upper Caves -5/Zhirov -4/Proximity Caves -4/Factory (discovered 6 exits: *Res x3 / *Upp x2 / Arm) -4/Upper Caves -4/Upper Caves (discovered 2 exits: Res / *War) -4/Warlord -3/Proximity Caves -3/Research -3/Testing -2/Research (discovered 2 exits: *Acc / *Qua) -2/Quarantine (discovered 2 exits: *Sec / [*Frg]) -2/Section 7 -1/Access -1/Command (discovered 3 exits: [*Sur x2] / [*Ac0]) -1/Access_0 Near Former Tau Ceti IV History --------- Turn | Location | Event 15 | -11/Scrapyard | Discovered new exit (range 15) 125 | -11/Scrapyard | Entered Materials 291 | -10/Materials | Discovered new exit (range 15) 318 | -10/Materials | Build established: Mutant 418 | -10/Materials | Discovered new exit (range 16) 475 | -10/Materials | Discovered new exit (range 16) 816 | -10/Materials | Discovered new exit (range 12) 891 | -10/Materials | Discovered new exit (range 10) 992 | -10/Materials | Identified exit to Materials 1041 | -10/Materials | Learned 2 Storage zone layouts 1109 | -10/Materials | Learned location of Mines (-8) 1129 | -10/Materials | Learned location of 1 exit from Storage 1163 | -10/Materials | Learned location of 3 exits from Materials 1193 | -10/Materials | Learned 2 Mines zone layouts 1823 | -10/Materials | Entered Subcaves 1824 | -10/Subcaves | Approached by a straggling Scientist 1824 | -10/Subcaves | Identified exit to Materials 1892 | -10/Subcaves | Learned location of Zion (-6) 1892 | -10/Subcaves | Met a Zionite searching for "candidates" 2111 | -10/Subcaves | Visited Clippyterm 2119 | -10/Subcaves | Learned location of Extension (-6) 2119 | -10/Subcaves | Learned Factory stockpile data 2392 | -10/Subcaves | A swath of the cavern ceiling suddenly collapsed 3444 | -10/Subcaves | Visited 4L-MR0's lab 3470 | -10/Subcaves | Found Cargo Legs 3627 | -10/Subcaves | Shifting Twisted Machinery released Mak. Light Armor Plating 3772 | -10/Subcaves | Identified exit to Recycling 3932 | -10/Subcaves | Shifting Twisted Machinery released Mak. Hammer 3934 | -10/Subcaves | Shifting Twisted Machinery released Slug Cannon 4179 | -10/Subcaves | Ambushed by Subdweller buried in earth 4190 | -10/Subcaves | Core integrity fell below 50% 4312 | -10/Subcaves | Ambushed by Subdweller buried in earth 4483 | -10/Subcaves | Build established: Scavenger-Mutant 4811 | -10/Subcaves | Build established: Mutant 4827 | -10/Subcaves | Entered Materials 4827 | -8/Materials | Evolved 4 slots: Propulsion x2, Utility x1, Weapon x1 4828 | -8/Materials | Identified exit to Factory 4828 | -8/Materials | Identified exit to Storage 5272 | -8/Materials | Build established: Scavenger-Gunner 6131 | -8/Materials | Garrison activated, responded to threat 6197 | -8/Materials | Destroyed 9 combat bots 6330 | -8/Materials | Learned Storage security intel 6380 | -8/Materials | Learned 4 Factory zone layouts 6402 | -8/Materials | Discovered exit to Storage (range 4) 6419 | -8/Materials | Learned 4 Lower Caves zone layouts 6488 | -8/Materials | Learned 2 Lower Caves zone layouts 6517 | -8/Materials | Learned 2 Storage zone layouts 6661 | -8/Materials | Central database locked down 8111 | -8/Materials | Entered Storage 9239 | -8/Storage | Build established: Scavenger-Mutant 9353 | -8/Storage | Learned location of 3 exits from Factory 9392 | -8/Storage | Learned Factory fabricator intel 9434 | -8/Storage | Learned Factory terminal intel 9638 | -8/Storage | Build established: Scavenger-Gunner 9661 | -8/Storage | Used back door to open Recycling access 9667 | -8/Storage | Entered Recycling 9667 | -8/Recycling | Accompanied by 3 allies 10112 | -8/Recycling | Discovered new exit (range 8) 11055 | -8/Recycling | Learned location of 2 exits from Lower Caves 11119 | -8/Recycling | Learned 4 Lower Caves zone layouts 11171 | -8/Recycling | Learned Factory recycling unit intel 11212 | -8/Recycling | Learned location of Storage (-8) 11340 | -8/Recycling | Learned location of 2 exits from Lower Caves 11453 | -8/Recycling | Entered Scraplab 11525 | -8/Recycling | Found Prototype Device 11525 | -8/Recycling | Identified Scrap Engine 11721 | -8/Recycling | Build established: Commander-Mutant 12158 | -8/Recycling | Build established: Commander-Construct 13423 | -8/Recycling | Entered Factory 13423 | -6/Factory | Accompanied by 10 allies 13423 | -6/Factory | Evolved 4 slots: Power x1, Propulsion x1, Utility x2 13424 | -6/Factory | Identified exit to Lower Caves 13424 | -6/Factory | Identified exit to Extension 13425 | -6/Factory | Identified exit to Factory 13428 | -6/Factory | Loaded intel: 26 terminal locations 13429 | -6/Factory | Loaded intel: 6 fabricator locations 13430 | -6/Factory | Loaded intel: 8 recycling unit locations 13659 | -6/Factory | Lost 3 allies 13676 | -6/Factory | Found Rocket Array 13708 | -6/Factory | Garrison activated, responded to threat 13774 | -6/Factory | Lost 4 allies 14033 | -6/Factory | Build established: Construct 14351 | -6/Factory | Entered Extension 14476 | -6/Extension | Rescued a captive Derelict 14522 | -6/Extension | Rescued a captive Derelict 14722 | -6/Extension | Rescued A7 15111 | -6/Extension | Spotted B-75 Beast 15128 | -6/Extension | Destroyed B-75 Beast 15140 | -6/Extension | Spotted B-75 Beast 15163 | -6/Extension | Allies destroyed B-75 Beast 15337 | -6/Extension | Lost 3 allies 15457 | -6/Extension | Rescued a captive Derelict 15458 | -6/Extension | Rescued a captive Derelict 15569 | -6/Extension | Rescued a captive Derelict 15573 | -6/Extension | Rescued a captive Derelict 15657 | -6/Extension | Build established: Commander-Construct 15688 | -6/Extension | Rescued a captive Derelict 15851 | -6/Extension | Discovered exit to Factory (range 10) 15853 | -6/Extension | Discovered new exit (range 6) 15912 | -6/Extension | Entered Cetus 15912 | -6/Cetus | Accompanied by 13 allies (A7) 15917 | -6/Cetus | Acquired a Cetus Manufacturing Module code from A7 15933 | -6/Cetus | Spotted Cetus Guard 15934 | -6/Cetus | Spotted Cetus Guard 15937 | -6/Cetus | Spotted Cetus Guard 15937 | -6/Cetus | Spotted Cetus Guard 15949 | -6/Cetus | Destroyed Cetus Guard 15949 | -6/Cetus | Destroyed Cetus Guard 15950 | -6/Cetus | Destroyed Cetus Guard 15950 | -6/Cetus | Allies destroyed Cetus Guard 16178 | -6/Cetus | Escorted A7 to Cetus Mainframe 16188 | -6/Cetus | Started Cetus Manufacturing Module 16213 | -6/Cetus | Manufactured an Enhanced Grunt 16238 | -6/Cetus | Manufactured an Enhanced Grunt 16263 | -6/Cetus | Manufactured an Enhanced Grunt 16273 | -6/Cetus | Discovered new exit (range 15) 16288 | -6/Cetus | Manufactured an Enhanced Grunt 16309 | -6/Cetus | Spotted Cetus Guard 16309 | -6/Cetus | Spotted Cetus Guard 16313 | -6/Cetus | Manufactured an Enhanced Grunt 16345 | -6/Cetus | Discovered exit to Factory (range 15) 16351 | -6/Cetus | Met Revision 17 16441 | -6/Cetus | Entered Archives 16441 | -6/Archives | Accompanied by 15 allies (A7) 16446 | -6/Archives | Received a hacking code to weaken MAIN.C 16485 | -6/Archives | Discovered new exit (range 16) 16498 | -6/Archives | Discovered new exit (range 16) 16519 | -6/Archives | Discovered exit to Factory (range 15) 16678 | -6/Archives | Entered Hub_04(d) 16678 | -6/Hub_04(d) | Accompanied by 12 allies 16678 | -6/Hub_04(d) | Discovered exit to Factory (range 10) 16759 | -6/Hub_04(d) | Garrison activated, responded to threat 16857 | -6/Hub_04(d) | Discovered exit to Factory (range 8) 17028 | -6/Hub_04(d) | First assault squad dispatched 17315 | -6/Hub_04(d) | Network Hub disabled 17317 | -6/Hub_04(d) | Network Hub disabled 17329 | -6/Hub_04(d) | Network Hub disabled 17361 | -6/Hub_04(d) | Lost 4 allies 17374 | -6/Hub_04(d) | Spotted Lightning 17382 | -6/Hub_04(d) | Spotted Lightning 17409 | -6/Hub_04(d) | Spotted Lightning 17433 | -6/Hub_04(d) | Entered Factory 17433 | -5/Factory | Evolved 2 slots: Utility x2 17627 | -5/Factory | Build established: Construct 18050 | -5/Factory | Identified exit to Upper Caves 18131 | -5/Factory | Garrison activated, responded to threat 18348 | -5/Factory | Entered Upper Caves 18350 | -5/Upper Caves | Attracted the attention of an 0b10 checkpoint 18520 | -5/Upper Caves | Attracted the attention of an 0b10 outpost 18589 | -5/Upper Caves | Destroyed 8 combat bots 18694 | -5/Upper Caves | Discovered new exit (range 16) 18808 | -5/Upper Caves | Entered another Upper Caves area 18808 | -5/Upper Caves | Accompanied by 2 allies 18923 | -5/Upper Caves | Encountered a Warlord checkpoint 19068 | -5/Upper Caves | Attracted the attention of an 0b10 checkpoint 19154 | -5/Upper Caves | Discovered new exit (range 17) 19181 | -5/Upper Caves | Entered Zhirov 19181 | -5/Zhirov | Accompanied by 2 allies 19181 | -5/Zhirov | Discovered new exit (range 3) 19202 | -5/Zhirov | Met Zhirov 19226 | -5/Zhirov | Learned location of Command (-1) 19233 | -5/Zhirov | Zhirov requested help retrieving the SGEMP Prototype 19250 | -5/Zhirov | Found Alien Artifact 19250 | -5/Zhirov | Identified Integrated Reactor 19250 | -5/Zhirov | Installed Integrated Reactor, increased core energy generation (+10) 19268 | -5/Zhirov | Found Alien Artifact 19487 | -5/Zhirov | Entered Proximity Caves 19487 | -4/Proximity Caves | Accompanied by 2 allies 19878 | -4/Proximity Caves | Received a Behemoth hack from an annoying Tinkerer 20113 | -4/Proximity Caves | Learned Research security intel 20113 | -4/Proximity Caves | Discovered new exit (range 13) 20123 | -4/Proximity Caves | Attracted the attention of an 0b10 checkpoint 20125 | -4/Proximity Caves | Entered Factory 20125 | -4/Factory | Evolved 2 slots: Power x1, Weapon x1 20313 | -4/Factory | Spotted B-86 Titan 20335 | -4/Factory | Befriended a Behemoth using the annoying Tinkerer's hack 20475 | -4/Factory | Garrison activated, responded to threat 20531 | -4/Factory | Allied Derelicts emerged from ambush trap array 20690 | -4/Factory | Discovered new exit (range 22) 20941 | -4/Factory | Lost 3 allies 20983 | -4/Factory | Discovered new exit (range 15) 21042 | -4/Factory | Fabricated Exp. Heat Sink (x1) 21161 | -4/Factory | Found Prototype Processor 21161 | -4/Factory | Identified Exp. Signal Interpreter 21365 | -4/Factory | Spotted B-86 Titan 21880 | -4/Factory | Found Prototype Processor 21880 | -4/Factory | Identified Exp. Terrain Scan Processor 22303 | -4/Factory | Identified exit to Upper Caves 22303 | -4/Factory | Identified exit to Armory 22375 | -4/Factory | First assault squad dispatched 22447 | -4/Factory | Discovered new exit (range 21) 22621 | -4/Factory | Found Exp. Signal Interpreter 22646 | -4/Factory | System corruption reached 10% 23122 | -4/Factory | Entered Upper Caves 23160 | -4/Upper Caves | Learned Research terminal intel 23242 | -4/Upper Caves | Entered an active Warlord outpost 23262 | -4/Upper Caves | Learned Research terminal intel 23262 | -4/Upper Caves | Learned Extension terminal intel 23262 | -4/Upper Caves | Learned Research garrison access intel 23345 | -4/Upper Caves | Learned Research trap positions 23345 | -4/Upper Caves | Learned Research terminal intel 23413 | -4/Upper Caves | Encountered a Warlord checkpoint 23481 | -4/Upper Caves | Discovered new exit (range 18) 23538 | -4/Upper Caves | Entered another Upper Caves area 23627 | -4/Upper Caves | Identified exit to Research 23639 | -4/Upper Caves | Spotted B-86 Titan 23641 | -4/Upper Caves | Befriended a Behemoth using the annoying Tinkerer's hack 23846 | -4/Upper Caves | Discovered new exit (range 20) 23937 | -4/Upper Caves | Entered Warlord 23937 | -4/Warlord | Accompanied by 1 ally 23971 | -4/Warlord | System corruption cleaned by Quarantine Array 24125 | -4/Warlord | Met Warlord 24150 | -4/Warlord | Warlord's base attacked by MAIN.C 24283 | -4/Warlord | Found Prototype Energy Cannon 24283 | -4/Warlord | Identified Vortex Cannon 24287 | -4/Warlord | Found Vortex Cannon 24301 | -4/Warlord | Found Prototype Piercing Weapon 24321 | -4/Warlord | Build established: Commander-Construct 24377 | -4/Warlord | Found Prototype Device 24377 | -4/Warlord | Identified Exp. Focal Shield 24424 | -4/Warlord | Learned Factory terminal intel 24424 | -4/Warlord | Learned Research scanalyzer intel 24424 | -4/Warlord | Learned 4 Quarantine zone layouts 24424 | -4/Warlord | Learned Armory emergency access door positions 24424 | -4/Warlord | Learned Research stockpile data 24472 | -4/Warlord | Spotted Striker 24497 | -4/Warlord | Destroyed Striker 24500 | -4/Warlord | Warlord forces counterattacked 24513 | -4/Warlord | Lost 4 allies 24523 | -4/Warlord | Spotted Executioner 24534 | -4/Warlord | Destroyed Executioner 24556 | -4/Warlord | Lost 3 allies 24570 | -4/Warlord | Spotted Striker 24645 | -4/Warlord | Discovered new exit (range 15) 24654 | -4/Warlord | Spotted Striker 24655 | -4/Warlord | Spotted Striker 24658 | -4/Warlord | Spotted Executioner 24661 | -4/Warlord | Destroyed Striker 24704 | -4/Warlord | Lost 8 allies 24741 | -4/Warlord | Entered Proximity Caves 24741 | -3/Proximity Caves | Accompanied by 5 allies 24947 | -3/Proximity Caves | Discovered exit to Research (range 11) 24992 | -3/Proximity Caves | Entered Research 24992 | -3/Research | Accompanied by 4 allies 24992 | -3/Research | Evolved 2 slots: Power x1, Utility x1 24993 | -3/Research | Loaded intel: 101 trap records 24996 | -3/Research | Loaded intel: 23 terminal locations 24997 | -3/Research | Loaded intel: 6 scanalyzer locations 24998 | -3/Research | Loaded intel: 3 garrison access locations 25069 | -3/Research | Found Gamma Bomb Array 25071 | -3/Research | Found Gamma Bomb Array 25153 | -3/Research | Found Prototype Hackware 25153 | -3/Research | Identified Exp. System Shield 25192 | -3/Research | Revision forces began assault on 0b10 25218 | -3/Research | Discovered new exit (range 20) 25238 | -3/Research | Identified exit to Testing 25299 | -3/Research | Build established: Generator-Construct 25359 | -3/Research | Met up with Revision 17++ 25692 | -3/Research | Research terminal network offline 25703 | -3/Research | Entered Testing 25771 | -3/Testing | Found Prototype Hackware 25838 | -3/Testing | Spotted Striker 25838 | -3/Testing | Spotted Striker 26023 | -3/Testing | Found Prototype Processor 26023 | -3/Testing | Identified Exp. Targeting Computer 26160 | -3/Testing | Discovered new exit (range 15) 26190 | -3/Testing | Spotted PY-KFKAG3OE9Y 26195 | -3/Testing | Spotted Alpha 7 26224 | -3/Testing | Destroyed Alpha 7 26252 | -3/Testing | Fabricated Exp. Biometal Heavy Treads? 26376 | -3/Testing | Unchained authorized (DW-4LL) 26466 | -3/Testing | Identified Ghost Barrier 26466 | -3/Testing | Identified Vortex Lance 26506 | -3/Testing | DW-4LL burst out of a wall 26544 | -3/Testing | Lost 3 parts (3u) 26549 | -3/Testing | Found Prototype Processor 26549 | -3/Testing | Identified Spectral Analyzer 26598 | -3/Testing | Entered Research 26598 | -2/Research | Warlord forces began assault on 0b10 26598 | -2/Research | Evolved 2 slots: Propulsion x1, Utility x1 26599 | -2/Research | Loaded intel: 24 terminal locations 26674 | -2/Research | Spotted B-90 Cyclops 26705 | -2/Research | Destroyed B-90 Cyclops 26708 | -2/Research | Research machine network offline 26896 | -2/Research | Borebot progress halted 26933 | -2/Research | Found Prototype Processor 26933 | -2/Research | Identified Exp. Core Analyzer 27046 | -2/Research | Found Spectral Analyzer 27075 | -2/Research | Spotted Striker 27102 | -2/Research | Spotted Executioner 27102 | -2/Research | Spotted Executioner 27144 | -2/Research | Destroyed Executioner 27151 | -2/Research | Destroyed Executioner 27180 | -2/Research | Found Exp. Core Analyzer 27183 | -2/Research | Found Exp. Core Analyzer 27183 | -2/Research | Borebot progress halted 27186 | -2/Research | Found Exp. Targeting Computer 27188 | -2/Research | Lost 8 allies 27189 | -2/Research | Found Exp. Targeting Computer 27231 | -2/Research | Borebot progress halted 27465 | -2/Research | Spotted Striker 27466 | -2/Research | Spotted Striker 27471 | -2/Research | Spotted Executioner 27480 | -2/Research | Spotted Executioner 27486 | -2/Research | Spotted Executioner 27519 | -2/Research | Destroyed Executioner 27521 | -2/Research | Destroyed Executioner 27534 | -2/Research | Spotted Striker 27539 | -2/Research | Spotted Striker 27552 | -2/Research | Destroyed Striker 27600 | -2/Research | Spotted Striker 27603 | -2/Research | Spotted Striker 27605 | -2/Research | Destroyed Striker 27609 | -2/Research | Destroyed Striker 27728 | -2/Research | Spotted Executioner 27796 | -2/Research | Spotted Executioner 27992 | -2/Research | Spotted Executioner 27997 | -2/Research | Spotted Executioner 27997 | -2/Research | Destroyed Executioner 27999 | -2/Research | Destroyed Executioner 28033 | -2/Research | Discovered new exit (range 10) 28059 | -2/Research | Spotted B-90 Cyclops 28060 | -2/Research | Destroyed B-90 Cyclops 28071 | -2/Research | Spotted B-90 Cyclops 28081 | -2/Research | Destroyed 14 combat bots 28109 | -2/Research | Given Cave Seal Controls access code 28214 | -2/Research | Spotted Striker 28222 | -2/Research | Spotted Striker 28304 | -2/Research | Destroyed Striker 28322 | -2/Research | Destroyed Striker 28359 | -2/Research | Discovered new exit (range 10) 28366 | -2/Research | Entered Quarantine 28421 | -2/Quarantine | Found Alien Artifact 28492 | -2/Quarantine | Identified Subatomic Replicator 28492 | -2/Quarantine | Identified Transdimensional Reconstructor 28557 | -2/Quarantine | Unchained authorized (DW-4LL) 28619 | -2/Quarantine | Cryocooling Duct disabled 28634 | -2/Quarantine | Ambient heat levels rising (+20) 28634 | -2/Quarantine | Non-combat units ordered to evacuate 28702 | -2/Quarantine | Spotted Alpha 7 28716 | -2/Quarantine | Destroyed Alpha 7 28729 | -2/Quarantine | Found Alien Launcher 28791 | -2/Quarantine | DW-4LL burst out of a wall 28808 | -2/Quarantine | Destroyed DW-4LL 28812 | -2/Quarantine | Found Prototype Device 28812 | -2/Quarantine | Identified Exp. Weapon Cycler 28818 | -2/Quarantine | Found ID Mask 28898 | -2/Quarantine | Spotted Fortress 28936 | -2/Quarantine | Destroyed Fortress 28955 | -2/Quarantine | Found Prototype Device 28955 | -2/Quarantine | Identified Exp. Force Field 28960 | -2/Quarantine | Found Prototype Device 28960 | -2/Quarantine | Identified Thermal Barrier 28963 | -2/Quarantine | Found Prototype Device 28963 | -2/Quarantine | Identified Exp. EM Shield 28997 | -2/Quarantine | Found Alien Artifact 29005 | -2/Quarantine | Found Transdimensional Reconstructor 29064 | -2/Quarantine | Discovered new exit (range 7) 29064 | -2/Quarantine | Discovered new exit (range 6) 29218 | -2/Quarantine | Entered Section 7 29329 | -2/Section 7 | Discovered new exit (range 20) 29333 | -2/Section 7 | Spotted B-90 Cyclops 29333 | -2/Section 7 | Spotted S7 Guard 29369 | -2/Section 7 | Destroyed S7 Guard 29391 | -2/Section 7 | Found Alien Artifact 29414 | -2/Section 7 | Destroyed B-90 Cyclops 29462 | -2/Section 7 | Spotted S7 Guard 29505 | -2/Section 7 | Destroyed S7 Guard 29521 | -2/Section 7 | Found Alien Artifact 29575 | -2/Section 7 | Found Alien Artifact 29600 | -2/Section 7 | Spotted Executioner 29600 | -2/Section 7 | Spotted Executioner 29627 | -2/Section 7 | Destroyed Executioner 29629 | -2/Section 7 | Destroyed Executioner 29645 | -2/Section 7 | Found Exp. Core Analyzer 29655 | -2/Section 7 | Found Prototype Device 29697 | -2/Section 7 | Spotted B-99 Colossus 29741 | -2/Section 7 | Found Alien Artifact 29741 | -2/Section 7 | Identified LRC Inertial Stabilizer 29741 | -2/Section 7 | Installed LRC Inertial Stabilizer, increased mass support (+10) 29823 | -2/Section 7 | Destroyed B-99 Colossus 29968 | -2/Section 7 | First assault squad dispatched 30037 | -2/Section 7 | Identified Core Regenerator 30037 | -2/Section 7 | Identified Core Physics Calibrator 30037 | -2/Section 7 | Identified Core Reset Matrix 30037 | -2/Section 7 | Identified Sigix Terminator 30037 | -2/Section 7 | Identified Adv. Kinecellerator 30200 | -2/Section 7 | System corruption reached 10% 30225 | -2/Section 7 | Entered Access 30225 | -1/Access | Evolved 2 slots: Utility x2 30287 | -1/Access | Lost 5 allies 30400 | -1/Access | Unchained authorized (6S-H0T) 30829 | -1/Access | Destroyed 19 combat bots 30866 | -1/Access | Destroyed 6S-H0T 30870 | -1/Access | Found 6S-H0T's SS Cartridge 30975 | -1/Access | First assault squad dispatched 31005 | -1/Access | Identified exit to Command 31186 | -1/Access | Entered Command 31245 | -1/Command | Destroyed 10 combat bots 31357 | -1/Command | System corruption reached 10% 31436 | -1/Command | First assault squad dispatched 31495 | -1/Command | Disengaged cave seal 31495 | -1/Command | Welcomed Warlord to Command 31580 | -1/Command | High security lockdown imminent 31660 | -1/Command | High security lockdown engaged 31740 | -1/Command | Spotted M Guard 31740 | -1/Command | Spotted M Guard 31740 | -1/Command | Spotted Combat Programmer 31751 | -1/Command | Spotted Combat Programmer 31763 | -1/Command | Destroyed M Guard 31768 | -1/Command | Destroyed Combat Programmer 31770 | -1/Command | Destroyed Combat Programmer 31778 | -1/Command | Destroyed M Guard 31778 | -1/Command | All MAIN.C guards destroyed 31794 | -1/Command | Lost 7 allies 31804 | -1/Command | Warlord commented on Warlord statues 31810 | -1/Command | Found Prototype Protection 31810 | -1/Command | Identified Hvy. Regenerative Plating 31841 | -1/Command | Met MAIN.C 31856 | -1/Command | Destroyed MAIN.C Shell 31858 | -1/Command | MAIN.C activated Command garrisons 31871 | -1/Command | 0b10 Conduit disabled 31887 | -1/Command | Warlord destroyed during the assault 31887 | -1/Command | Murdered ZY-L1N 31889 | -1/Command | Destroyed MAIN.C 31908 | -1/Command | Discovered new exit (range 33) 31908 | -1/Command | Discovered new exit (range 101) 31908 | -1/Command | Extracted map data and part IDs from MAIN.C's data core 31925 | -1/Command | Found Hpw. Disruptor Cannon 32007 | -1/Command | Spotted B-99 Colossus 32020 | -1/Command | Destroyed B-99 Colossus 32146 | -1/Command | Found Exp. System Purifier 32838 | -1/Command | Phase Generator disabled 33105 | -1/Command | Found Multirail 33110 | -1/Command | Found Multirail 34520 | -1/Command | Found Multirail 35956 | -1/Command | Found Exp. Targeting Computer 35958 | -1/Command | Found Exp. Targeting Computer 36281 | -1/Command | Found Exp. Core Analyzer 36883 | -1/Command | Warped through subspace to slip node 36883 | -1/Command | Discovered new exit (range 5) 36891 | -1/Command | Entered Access_0 36893 | -1/Access_0 | Met Architect 36905 | -1/Access_0 | Architect warped through subspace 36912 | -1/Access_0 | Destroyed A8 36946 | -1/Access_0 | Architect warped through subspace 36962 | -1/Access_0 | Subspace Access Node disabled 36983 | -1/Access_0 | Architect warped through subspace 37016 | -1/Access_0 | Architect warped through subspace 37072 | -1/Access_0 | A6 warped into view 37076 | -1/Access_0 | Destroyed A6 37085 | -1/Access_0 | Architect warped through subspace 37148 | -1/Access_0 | Architect warped through subspace 37177 | -1/Access_0 | Architect warped through subspace 37203 | -1/Access_0 | Architect warped through subspace 37227 | -1/Access_0 | Architect warped through subspace 37255 | -1/Access_0 | Architect warped through subspace 37275 | -1/Access_0 | A5 warped into view 37289 | -1/Access_0 | Architect warped through subspace 37312 | -1/Access_0 | Destroyed A5 37321 | -1/Access_0 | Architect warped through subspace 37346 | -1/Access_0 | Architect warped through subspace 37372 | -1/Access_0 | Architect warped through subspace 37388 | -1/Access_0 | Architect warped through subspace 37424 | -1/Access_0 | Architect warped through subspace 37461 | -1/Access_0 | Architect warped through subspace 37497 | -1/Access_0 | Architect warped through subspace 37538 | -1/Access_0 | Architect warped through subspace 37574 | -1/Access_0 | Subspace Access Node disabled 37579 | -1/Access_0 | Architect warped through subspace 37624 | -1/Access_0 | Architect warped through subspace 37683 | -1/Access_0 | Architect warped through subspace 37686 | -1/Access_0 | Subspace Access Node disabled 37706 | -1/Access_0 | Architect warped through subspace 37739 | -1/Access_0 | Architect warped through subspace 37771 | -1/Access_0 | Architect warped through subspace 37785 | -1/Access_0 | Architect warped through subspace 37797 | -1/Access_0 | Architect warped through subspace 37809 | -1/Access_0 | Architect warped through subspace 37818 | -1/Access_0 | Architect warped through subspace 37832 | -1/Access_0 | Architect warped through subspace 37842 | -1/Access_0 | Architect warped through subspace 37847 | -1/Access_0 | Architect warped through subspace 37863 | -1/Access_0 | Subspace Access Node disabled 37886 | -1/Access_0 | Destroyed Architect 37887 | -1/Access_0 | Architect triggered a singularity event 37888 | -1/Access_0 | Warped through subspace to slip node 37888 | -1/Access_0 | Discovered new exit (range 8) 37896 | *** | Escaped singularity! Last Messages --------------- 37886_ Architect: "If I can't win, no one wins!" 37886_ Architect destroyed. 37887_ A0_COM: Initiating irreversible singularity event. Goodbye. 37888_ A0_COM: 10. 37888_ Warped through subspace, drawn to slip node. 37888_ EXIT=FOUND 37889_ A0_COM: 9. 37890_ A0_COM: 8. 37891_ A0_COM: 7. 37892_ A0_COM: 6. 37893_ A0_COM: 5. 37894_ A0_COM: 4. 37895_ A0_COM: 3. 37896_ A0_COM: 2. [Achievement: Force of Scrap] [Achievement: 75k Club] [Achievement: 100k Club] [Achievement: Renaissance Bot] Map ----- +----------------------------------------------------+ | | | | | | | | | | | | | | | | | | | | | | | | | | | | | | | | | ?????????????????????????????????????????????????? | | ?????????????????????????????????????????????????? | | ?????????????????????????????????????????????????? | | ?????????????????????????????????????????????????? | | ?????????????????????????????????????????????????? | | ?????????????????????????????????????????????????? | | ????????????????????????###??????????????????????? | | ???????????????????????## ##?????????????????????? | | ???????????????????????# #?????????????????????? | | ???????????????????????# @ #?????????????????????? | | ??????????????????????## #?????????????????????? | | ??????????????????????# #?????????????????????? | | ??????????????????????# ##?????????????????????? | | ??????????????????????## #?????????????????????? | | ??????????????????????# #?????????????????????? | | ??????????????????????# ##?????????????????????? | | ??????????????????????# < #?????????????????????? | | ??????????????????????# ##?????????????????????? | | ??????????????????????## #??????????????????????? | | ???????????????????????####??????????????????????? | | ?????????????????????????????????????????????????? | | ?????????????????????????????????????????????????? | | ?????????????????????????????????????????????????? | | ?????????????????????????????????????????????????? | | ?????????????????????????????????????????????????? | | ?????????????????????????????????????????????????? | | ?????????????????????????????????????????????????? | | ?????????????????????????????????????????????????? | | ?????????????????????????????????????????????????? | | ?????????????????????????????????????????????????? | | ?????????????????????????????????????????????????? | | ?????????????????????????????????????????????????? | | ?????????????????????????????????????????????????? | | ?????????????????????????????????????????????????? | +----------------------------------------------------+ Best States ------------- Heat Dissipation 156 Coolant Potential 100 Energy Generation 133 Energy Capacity 2097 Matter Stores 300 Matter Capacity 300 Sight Range 24 Terrain Scan Density 10 Base Temperature (-) 200 Armor Coverage 1200 Resistance: KI 30 Resistance: EM 75 Evasion (%) 63 Targeting Accuracy 12 Core Analysis 8 Armor Integrity Analysis 40 Recoil Reduction 6 Kinecelleration 50 Offensive Hacking 12 Item Schematics ----------------- ECM Suite | -10/Materials | Hacked Nuclear Pulse Thruster | -8/Storage | Hacked Spear | -8/Recycling | Hacked Assault Drone Bay | -5/Zhirov | Free Exp. Heat Sink | -5/Zhirov | Free Imp. Arc Thrower | -5/Zhirov | Free Exp. Optical Array | -5/Zhirov | Free Quantum Reactor | -3/Research | Hacked Biometal Heavy Treads | -3/Research | Hacked Enh. Force Rifle | -2/Quarantine | Archive Hvy. Dispersion Rifle | -2/Quarantine | Archive Quantum Shading Machine | -2/Quarantine | Archive Prc. Phase Gun | -2/Quarantine | Archive Adv. Myomer Leg | -2/Quarantine | Archive Exp. Power Amplifier | -2/Section 7 | Archive Centrium Light Armor Plating | -2/Section 7 | Archive Hvy. Tesla Rifle | -2/Section 7 | Archive Com. Tesla Bomb Launcher | -2/Section 7 | Archive Robot Schematics ------------------ S-43 Plague | -2/Section 7 | Archive G-73 Enforcer | -2/Section 7 | Archive Fabricated ------------ Exp. Heat Sink | x1 | -4/Factory Exp. Biometal Heavy Treads | x1 | -3/Testing | Preloaded Repaired ---------- Nothing Studied --------- Autogun | -8/Materials | Hacked Lgt. Treads | -8/Materials | Hacked Proton Missile Launcher | -5/Factory | Hacked Alien Tech Used ----------------- Integrated Reactor LRC Inertial Stabilizer Transdimensional Reconstructor Achievements -------------- 100k Club 75k Club All Kinds Of Bad News Anti-science Crusade Bigger And Badder Bigger Is Better Bumper Bots Construction Begets Destruction DIY Cooler Do Not Disturb Ew, Corruption For Emergencies Only Force of Scrap Hammer Time Heavy Suspicion I Laugh At Your Crits Immobile And Lovin' It Irresistible Scrap Item+ Junior Dev Mistaken Identity Network Effect Not So Scrappy Not Today, Chutes Organ Harvest Overwhelming Renaissance Bot Scrappetite Showdown Spot Them First Sprinter Stay Cool Under Fire Survival Of The Most Covered The Better Part Of Valor There's More Where That Came From Throw Away The Key Tune-up Welcome To The Revolution Well-fed Force Field Challenges ------------ None Game ------ Seed ImprinterSuperquantumField Manual? 0 Play Time 04:31:01 Cumulative 1253.1 hours Start 2025.10.24 @ 16:49:12 End 2025.10.25 @ 16:37:21 Sessions 9 Manual Loads 0 Difficulty Rogue Special Mode None Game No. 634 Rogue 626 Adventurer 8 Explorer 0 Win Type 6 Total 328 Types 172/24/73/10/3/4/13/11/6/12 Lore% 98 Gallery% 98 Achievement% 60 Wizard Run 0 Options --------- Layout 2 ASCII 0 Keyboard 0 Movement Arrows Keybinds 0 Fullscreen 2 Font 32/SmallcapsGlow Map View 50x44 Zoom Use 0% Tactical HUD 1 Map Filters NONE Filters NONE Steam 1 RUN: 4d33e39f-dbfb-4b84-b1b2-6d9b68fd2d8d